Workbook

Sheet Результаты
B2: ЭКОНОМИЧЕСКИЙ ЭФФЕКТ ОТ ПОКУПКИ ИЛИ АРЕНДЫ ТЕРМИНАЛОВ
B4: Горизонт прогноза | C4: 36 мес.
B5: Статус компании | C5: =Анкета!E7 -> Действующая
B6: Покупка или Аренда | C6: =Анкета!E8 -> Покупка терминалов
B8: Замещение кассовых зон Терминалами
B9: Изначальное количество кассовых зон | C9: ='Данные СМС'!C5 -> 3
B11: Оставшееся количество кассовых зон | C11: ='Данные СМС'!C5-'Данные СМС'!C9 -> 1
B12: Количество Терминалов (покупка или аренды) | C12: =C9-C11 -> 2
B15: Экономический эффект | C15: Накопленный дисконтируемый денежный поток | D15: Экономия | E15: Окупаемость капитальных вложений
C16: тыс. руб. | D16: тыс. руб. | E16: мес.
B17: При сохранении существующего формата работы | C17: ='Расчетные таблицы'!D32 -> 6060.982011 | D17: =C17-C18 -> 1918.414415 | E17: =IF(Анкета!E8="Покупка терминалов",'Расчетные таблицы'!D51,"Не рассчитывается") -> 13
B18: При покупке или аренде Терминалов | C18: ='Расчетные таблицы'!D50 -> 4142.567596

Sheet Анкета
B2: АНКЕТА ДЛЯ ПРОВЕДЕНИЯ АУДИТА И ЭКОНОМИЧЕСКОГО РАСЧЕТА
B4: № | C4: Вопросы | D4: Ответ | F4: Пример | G4: Комментарии
D5: ед.изм. | E5: значение
B6: Вводные параметры
B7: 1 | C7: Терминалы будут введены в действующей организации или в стартапе? | E7: Действующая | F7: выберите из предложенных вариантов
B8: 2 | C8: Терминалы предполагается покупаться или брать в аренду? | E8: Покупка терминалов | F8: выберите из предложенных вариантов
B9: Кассы, кассовое ПО и эквайринг
B10: 3 | C10: Какое кассовое ПО используется Заказчиком? | F10: R-Keeper | G10: R-Keeper, Iiko, 1C и т.д.
B11: 4 | C11: Сколько традиционных кассовых аппаратов расположено на объекте? | F11: 2
B12: 5 | C12: Имеется ли эквайринг и, если имеется, то от какого банка? | F12: Русский стандарт
B13: =B12+1 -> 6 | C13: Имеется ли свободный фискальный регистратор и, если да, то какая модель ККТ? | F13: Retail-01ф | G13: Для использования совместно с кассой самообслуживания
B14: Покупка терминалов
B15: =B13+1 -> 7 | C15: Фото зоны раздачи с кассовыми модулями для планирования мест установки "Помогаторов" | F15: фото во вложении | G15: В случае невозможности очного выезда на объект, просим сфотографировать зоны выдачи и выслать фотографии
B16: Организация процесса питания
B17: =B15+1 -> 8 | C17: Описание услуги питания, наличие дополнительных услуг, помимо продаж с раздачи | F17: Раздача, станция анимации | G17: Опишите оказываемые услуги питания и дополнительные услуги при наличии
B18: =B17+1 -> 9 | C18: Комплексный обед и описание его реализации на кассе | F18: 5 блюд за 350 руб.
B19: 10 | C19: Описание Салат-бара: что в него входит и как пробивается по кассе | F19: 100 г. – 50 руб., входит 10 позиций
B20: 11 | C20: Различные станции Анимации (если есть) | F20: 1 станция с различным ассортиментом | G20: Станция Пицца, Станция Паста и т. д.
B21: 12 | C21: Описание Скидок и Маркетинговых программ | F21: скидка 20% на блюда раздачи с 15.00 | G21: Скидка после 16-00 или скидка на кофе + круассан
B22: 13 | C22: Наличие блюд в меню в один день с разным выходом по разным ценам | F22: 1.суп общее меню 250 мл/ комплекс 300 мл.; 2.гарнир общее меню 150г/ комплекс 200г | G22: Суп картофельный 250 гр. - 50 руб. и картофельный суп 350 гр. - 75 руб.
B23: 14 | C23: Повторяемость_блюд_в_меню | D23: дн./ед. | E23: 7 календарных дней | F23: Выберете количество блюд или повторяемость | G23: Как часто повторяются блюда в меню или какое количество блюд в меню
B24: =B23+1 -> 15 | C24: Распишите, пожалуйста, меню на месяц в формате Excel по дням | F24: файл во вложении | G24: (Важно!) Меню должно быть одинаковым с прошлым месяцем на 95%
B25: =B24+1 -> 16 | C25: Сколько позиций в общем меню / активных в течение дня? | D25: ед. | F25: 50
B26: =B25+1 -> 17 | C26: Сколько новых блюд добавляется за одну неделю в меню? | D26: ед. | F26: до 10
B27: Персонал объекта и обслуживание гостей
B28: =B26+1 -> 18 | C28: Имеются ли на объектах сотрудники с дотацией? | E28: нет | F28: нет | G28: Дотация реализуется с помощью пропусков (RFID) сотрудников Заказчика
B29: 19 | C29: Сколько составляет месячная з/п кассира на традиционной кассе, GROSS? | D29: руб. | E29: 42000 | F29: 40000 | G29: В случае, если работа кассиров осуществляется сменами/вахтами, укажите з/п кассира, если бы он работал все смены/вахты в месяц
B30: 20 | C30: Сколько кассиров в штате данного заведения? | D30: чел. | E30: 3 | F30: 7 | G30: Есть ли сменность работы (например 2 через 2)
B31: 21 | C31: Сколько кассовых аппаратов работает в день одновременно? | D31: чел. | E31: 3 | F31: 7 | G31: Не более 10 кассовых зон
B32: 22 | C32: Сколько составляет площадь, занимаемая традиционным кассовым местом? | D32: кв. м | E32: 1.33 | F32: 1.33 | G32: Включая кассовое оборудование, кассовый бокс, место расположения кассира, тумбы с оборудованием и т.д.
B33: 23 | C33: Сколько чеков пробивается в день в заведении? | D33: ед. | E33: до 400 | F33: до 400
B34: 24 | C34: Сколько составляет среднее время обслуживания 1 гостя на традиционной кассе? | D34: сек | E34: 30 | F34: 30
B35: =B34+1 -> 25 | C35: Сколько составляют месячные расходы на подбор одного кассира (оценочно)? | D35: руб. | E35: 1000 | F35: 1000
B36: 26 | C36: Сколько составляет средний чек? | D36: руб. | E36: 200 | F36: 200
B37: 27 | C37: Сколько покупателей в среднем в день? | D37: чел. | E37: 300 | F37: 300
B38: 28 | C38: Сколько рабочих дней в месяце? | D38: дней | E38: 21 | F38: 21
B39: 29 | C39: Какая средняя себестоимость одного приема пищи для одного кассира? | D39: руб. | E39: 60 | F39: 60
B40: 30 | C40: Сколько приемов пищи в день у одного кассира? | D40: раз | E40: 2 | F40: 2
B41: Затраты на кассира и кассовый аппарат
B42: =B40+1 -> 31 | C42: Сколько стоит кассовый терминал? | D42: руб. | E42: 65000 | F42: 65000
B43: =B42+1 -> 32 | C43: Сколько стоит фискальный принтер? | D43: руб. | E43: 32000 | F43: 32000
B44: =B43+1 -> 33 | C44: Сколько стоит POS-системы? | D44: руб. | E44: 20000 | F44: 20000
B45: =B44+1 -> 34 | C45: Сколько стоит стол и стул в общем? | D45: руб. | E45: 1000 | F45: 1000
B46: =B45+1 -> 35 | C46: Сколько стоит униформа на одного кассира? | D46: руб. | E46: 1500 | F46: 1500
B47: Выручка
B48: =B46+1 -> 36 | C48: Какая доля безналичных платежей в выручке? | D48: % | E48: 0.95 | F48: 0.95
B49: =B48+1 -> 37 | C49: Сколько процентов составляет предположительный ежемесячный темп роста выручки? | D49: % | E49: н/д | F49: н/д
B50: =B49+1 -> 38 | C50: Сколько процентов составляет предположительный ежемесячный темп роста расходов? | D50: % | E50: н/д | F50: н/д
B51: =B50+1 -> 39 | C51: Сколько процентов составляет предположительный ежемесячный темп роста доли безналичных платежей? | D51: % | E51: н/д | F51: н/д

Sheet Расчетные таблицы
C1: № пер. | D1: 1 | E1: 2 | F1: 3 | G1: 4 | H1: 5 | I1: 6 | J1: 7 | K1: 8 | L1: 9 | M1: 10 | N1: 11 | O1: 12 | P1: 13 | Q1: 14 | R1: 15 | S1: 16 | T1: 17 | U1: 18 | V1: 19 | W1: 20 | X1: 21 | Y1: 22 | Z1: 23 | AA1: 24 | AB1: 25 | AC1: 26 | AD1: 27 | AE1: 28 | AF1: 29 | AG1: 30 | AH1: 31 | AI1: 32 | AJ1: 33 | AK1: 34 | AL1: 35 | AM1: 36
B2: РАСЧЕТНЫЕ ТАБЛИЦЫ | C2: ед.изм. | D2: 1 мес. | E2: 2 мес. | F2: 3 мес. | G2: 4 мес. | H2: 5 мес. | I2: 6 мес. | J2: 7 мес. | K2: 8 мес. | L2: 9 мес. | M2: 10 мес. | N2: 11 мес. | O2: 12 мес. | P2: 13 мес. | Q2: 14 мес. | R2: 15 мес. | S2: 16 мес. | T2: 17 мес. | U2: 18 мес. | V2: 19 мес. | W2: 20 мес. | X2: 21 мес. | Y2: 22 мес. | Z2: 23 мес. | AA2: 24 мес. | AB2: 25 мес. | AC2: 26 мес. | AD2: 27 мес. | AE2: 28 мес. | AF2: 29 мес. | AG2: 30 мес. | AH2: 31 мес. | AI2: 32 мес. | AJ2: 33 мес. | AK2: 34 мес. | AL2: 35 мес. | AM2: 36 мес.
B5: Количество кассовых аппаратов и терминалов
B6: До изменений
B7: Количество терминалов | C7: ед. | D7: 0 | E7: =D7 -> 0 | F7: =E7 -> 0 | G7: 0 | H7: 0 | I7: 0 | J7: 0 | K7: 0 | L7: 0 | M7: 0 | N7: 0 | O7: 0 | P7: 0 | Q7: 0 | R7: 0 | S7: 0 | T7: 0 | U7: 0 | V7: 0 | W7: 0 | X7: 0 | Y7: 0 | Z7: 0 | AA7: 0 | AB7: 0 | AC7: 0 | AD7: 0 | AE7: 0 | AF7: 0 | AG7: 0 | AH7: 0 | AI7: 0 | AJ7: 0 | AK7: 0 | AL7: 0 | AM7: 0
B8: Количество кассовых аппаратов | C8: ед. | D8: =Предпосылки!F9 -> 3 | E8: 3 | F8: 3 | G8: 3 | H8: 3 | I8: 3 | J8: 3 | K8: 3 | L8: 3 | M8: 3 | N8: 3 | O8: 3 | P8: 3 | Q8: 3 | R8: 3 | S8: 3 | T8: 3 | U8: 3 | V8: 3 | W8: 3 | X8: 3 | Y8: 3 | Z8: 3 | AA8: 3 | AB8: 3 | AC8: 3 | AD8: 3 | AE8: 3 | AF8: 3 | AG8: 3 | AH8: 3 | AI8: 3 | AJ8: 3 | AK8: 3 | AL8: 3 | AM8: 3
B9: После изменений
B10: Действующая компания
B11: Количество терминалов | C11: ед. | D11: =IF(D$16=2,'Технический лист'!$D7,IF(D$16=3,'Технический лист'!$D14,IF(D$16=4,'Технический лист'!$D21, IF(D$16=5, 'Технический лист'!$D28, IF(D$16=6,'Технический лист'!$D35, IF(D$16=7,'Технический лист'!$D42,IF(D$16=8, 'Технический лист'!$D49, IF(D$16=9,'Технический лист'!$D56,IF(D$16=10, 'Технический лист'!$D63))))))))) -> 1 | E11: =IF(E$16=2,'Технический лист'!$D8,IF(E$16=3,'Технический лист'!$D15,IF(E$16=4,'Технический лист'!$D22, IF(E$16=5, 'Технический лист'!$D29, IF(E$16=6,'Технический лист'!$D36, IF(E$16=7,'Технический лист'!$D43,IF(E$16=8, 'Технический лист'!$D50, IF(E$16=9,'Технический лист'!$D57,IF(E$16=10, 'Технический лист'!$D64))))))))) -> 2 | F11: =IF(F$16=2,'Технический лист'!$D9,IF(F$16=3,'Технический лист'!$D16,IF(F$16=4,'Технический лист'!$D23, IF(F$16=5, 'Технический лист'!$D30, IF(F$16=6,'Технический лист'!$D37, IF(F$16=7,'Технический лист'!$D44,IF(F$16=8, 'Технический лист'!$D51, IF(F$16=9,'Технический лист'!$D58,IF(F$16=10, 'Технический лист'!$D65))))))))) -> 2 | G11: =IF(G$16=2,'Технический лист'!$D10,IF(G$16=3,'Технический лист'!$D17,IF(G$16=4,'Технический лист'!$D24, IF(G$16=5, 'Технический лист'!$D31, IF(G$16=6,'Технический лист'!$D38, IF(G$16=7,'Технический лист'!$D45,IF(G$16=8, 'Технический лист'!$D52, IF(G$16=9,'Технический лист'!$D59,IF(G$16=10, 'Технический лист'!$D66))))))))) -> 2 | H11: =IF(H$16=2,'Технический лист'!$D11,IF(H$16=3,'Технический лист'!$D18,IF(H$16=4,'Технический лист'!$D25, IF(H$16=5, 'Технический лист'!$D32, IF(H$16=6,'Технический лист'!$D39, IF(H$16=7,'Технический лист'!$D46,IF(H$16=8, 'Технический лист'!$D53, IF(H$16=9,'Технический лист'!$D60,IF(H$16=10, 'Технический лист'!$D67))))))))) -> 2 | I11: =IF(I$16=2,'Технический лист'!$D12,IF(I$16=3,'Технический лист'!$D19,IF(I$16=4,'Технический лист'!$D26, IF(I$16=5, 'Технический лист'!$D33, IF(I$16=6,'Технический лист'!$D40, IF(I$16=7,'Технический лист'!$D47,IF(I$16=8, 'Технический лист'!$D54, IF(I$16=9,'Технический лист'!$D61,IF(I$16=10, 'Технический лист'!$D68))))))))) -> 2 | J11: =I11 -> 2 | K11: =J11 -> 2 | L11: 2 | M11: 2 | N11: 2 | O11: 2 | P11: 2 | Q11: 2 | R11: 2 | S11: 2 | T11: 2 | U11: 2 | V11: 2 | W11: 2 | X11: 2 | Y11: 2 | Z11: 2 | AA11: 2 | AB11: 2 | AC11: 2 | AD11: 2 | AE11: 2 | AF11: 2 | AG11: 2 | AH11: 2 | AI11: 2 | AJ11: 2 | AK11: 2 | AL11: 2 | AM11: 2
B12: Количество кассовых аппаратов | C12: ед. | D12: =IF(D$16=2,'Технический лист'!$E7,IF(D$16=3,'Технический лист'!$E14,IF(D$16=4,'Технический лист'!$E21, IF(D$16=5, 'Технический лист'!$E28, IF(D$16=6,'Технический лист'!$E35, IF(D$16=7,'Технический лист'!$E42,IF(D$16=8, 'Технический лист'!$E49, IF(D$16=9,'Технический лист'!$E56,IF(D$16=10, 'Технический лист'!$E63))))))))) -> 2 | E12: =IF(E$16=2,'Технический лист'!$E8,IF(E$16=3,'Технический лист'!$E15,IF(E$16=4,'Технический лист'!$E22, IF(E$16=5, 'Технический лист'!$E29, IF(E$16=6,'Технический лист'!$E36, IF(E$16=7,'Технический лист'!$E43,IF(E$16=8, 'Технический лист'!$E50, IF(E$16=9,'Технический лист'!$E57,IF(E$16=10, 'Технический лист'!$E64))))))))) -> 1 | F12: =IF(F$16=2,'Технический лист'!$E9,IF(F$16=3,'Технический лист'!$E16,IF(F$16=4,'Технический лист'!$E23, IF(F$16=5, 'Технический лист'!$E30, IF(F$16=6,'Технический лист'!$E37, IF(F$16=7,'Технический лист'!$E44,IF(F$16=8, 'Технический лист'!$E51, IF(F$16=9,'Технический лист'!$E58,IF(F$16=10, 'Технический лист'!$E65))))))))) -> 1 | G12: =IF(G$16=2,'Технический лист'!$E10,IF(G$16=3,'Технический лист'!$E17,IF(G$16=4,'Технический лист'!$E24, IF(G$16=5, 'Технический лист'!$E31, IF(G$16=6,'Технический лист'!$E38, IF(G$16=7,'Технический лист'!$E45,IF(G$16=8, 'Технический лист'!$E52, IF(G$16=9,'Технический лист'!$E59,IF(G$16=10, 'Технический лист'!$E66))))))))) -> 1 | H12: =IF(H$16=2,'Технический лист'!$E11,IF(H$16=3,'Технический лист'!$E18,IF(H$16=4,'Технический лист'!$E25, IF(H$16=5, 'Технический лист'!$E32, IF(H$16=6,'Технический лист'!$E39, IF(H$16=7,'Технический лист'!$E46,IF(H$16=8, 'Технический лист'!$E53, IF(H$16=9,'Технический лист'!$E60,IF(H$16=10, 'Технический лист'!$E67))))))))) -> 1 | I12: =IF(I$16=2,'Технический лист'!$E12,IF(I$16=3,'Технический лист'!$E19,IF(I$16=4,'Технический лист'!$E26, IF(I$16=5, 'Технический лист'!$E33, IF(I$16=6,'Технический лист'!$E40, IF(I$16=7,'Технический лист'!$E47,IF(I$16=8, 'Технический лист'!$E54, IF(I$16=9,'Технический лист'!$E61,IF(I$16=10, 'Технический лист'!$E68))))))))) -> 1 | J12: =I12 -> 1 | K12: =J12 -> 1 | L12: 1 | M12: 1 | N12: 1 | O12: 1 | P12: 1 | Q12: 1 | R12: 1 | S12: 1 | T12: 1 | U12: 1 | V12: 1 | W12: 1 | X12: 1 | Y12: 1 | Z12: 1 | AA12: 1 | AB12: 1 | AC12: 1 | AD12: 1 | AE12: 1 | AF12: 1 | AG12: 1 | AH12: 1 | AI12: 1 | AJ12: 1 | AK12: 1 | AL12: 1 | AM12: 1
B13: Стартап
B14: Действующая | C14: ед. | D14: =IF(D$16=2,'Технический лист'!$D12,IF(D$16=3,'Технический лист'!$D19,IF(D$16=4,'Технический лист'!$D26, IF(D$16=5, 'Технический лист'!$D33, IF(D$16=6,'Технический лист'!$D40, IF(D$16=7,'Технический лист'!$D47,IF(D$16=8, 'Технический лист'!$D54, IF(D$16=9,'Технический лист'!$D61,IF(D$16=10, 'Технический лист'!$D68))))))))) -> 2 | E14: =IF(E$16=2,'Технический лист'!$D12,IF(E$16=3,'Технический лист'!$D19,IF(E$16=4,'Технический лист'!$D26, IF(E$16=5, 'Технический лист'!$D33, IF(E$16=6,'Технический лист'!$D40, IF(E$16=7,'Технический лист'!$D47,IF(E$16=8, 'Технический лист'!$D54, IF(E$16=9,'Технический лист'!$D61,IF(E$16=10, 'Технический лист'!$D68))))))))) -> 2 | F14: =IF(F$16=2,'Технический лист'!$D12,IF(F$16=3,'Технический лист'!$D19,IF(F$16=4,'Технический лист'!$D26, IF(F$16=5, 'Технический лист'!$D33, IF(F$16=6,'Технический лист'!$D40, IF(F$16=7,'Технический лист'!$D47,IF(F$16=8, 'Технический лист'!$D54, IF(F$16=9,'Технический лист'!$D61,IF(F$16=10, 'Технический лист'!$D68))))))))) -> 2 | G14: =IF(G$16=2,'Технический лист'!$D12,IF(G$16=3,'Технический лист'!$D19,IF(G$16=4,'Технический лист'!$D26, IF(G$16=5, 'Технический лист'!$D33, IF(G$16=6,'Технический лист'!$D40, IF(G$16=7,'Технический лист'!$D47,IF(G$16=8, 'Технический лист'!$D54, IF(G$16=9,'Технический лист'!$D61,IF(G$16=10, 'Технический лист'!$D68))))))))) -> 2 | H14: =IF(H$16=2,'Технический лист'!$D12,IF(H$16=3,'Технический лист'!$D19,IF(H$16=4,'Технический лист'!$D26, IF(H$16=5, 'Технический лист'!$D33, IF(H$16=6,'Технический лист'!$D40, IF(H$16=7,'Технический лист'!$D47,IF(H$16=8, 'Технический лист'!$D54, IF(H$16=9,'Технический лист'!$D61,IF(H$16=10, 'Технический лист'!$D68))))))))) -> 2 | I14: =IF(I$16=2,'Технический лист'!$D12,IF(I$16=3,'Технический лист'!$D19,IF(I$16=4,'Технический лист'!$D26, IF(I$16=5, 'Технический лист'!$D33, IF(I$16=6,'Технический лист'!$D40, IF(I$16=7,'Технический лист'!$D47,IF(I$16=8, 'Технический лист'!$D54, IF(I$16=9,'Технический лист'!$D61,IF(I$16=10, 'Технический лист'!$D68))))))))) -> 2 | J14: =IF(J$16=2,'Технический лист'!$D12,IF(J$16=3,'Технический лист'!$D19,IF(J$16=4,'Технический лист'!$D26, IF(J$16=5, 'Технический лист'!$D33, IF(J$16=6,'Технический лист'!$D40, IF(J$16=7,'Технический лист'!$D47,IF(J$16=8, 'Технический лист'!$D54, IF(J$16=9,'Технический лист'!$D61,IF(J$16=10, 'Технический лист'!$D68))))))))) -> 2 | K14: =IF(K$16=2,'Технический лист'!$D12,IF(K$16=3,'Технический лист'!$D19,IF(K$16=4,'Технический лист'!$D26, IF(K$16=5, 'Технический лист'!$D33, IF(K$16=6,'Технический лист'!$D40, IF(K$16=7,'Технический лист'!$D47,IF(K$16=8, 'Технический лист'!$D54, IF(K$16=9,'Технический лист'!$D61,IF(K$16=10, 'Технический лист'!$D68))))))))) -> 2 | L14: =IF(L$16=2,'Технический лист'!$D12,IF(L$16=3,'Технический лист'!$D19,IF(L$16=4,'Технический лист'!$D26, IF(L$16=5, 'Технический лист'!$D33, IF(L$16=6,'Технический лист'!$D40, IF(L$16=7,'Технический лист'!$D47,IF(L$16=8, 'Технический лист'!$D54, IF(L$16=9,'Технический лист'!$D61,IF(L$16=10, 'Технический лист'!$D68))))))))) -> 2 | M14: =IF(M$16=2,'Технический лист'!$D12,IF(M$16=3,'Технический лист'!$D19,IF(M$16=4,'Технический лист'!$D26, IF(M$16=5, 'Технический лист'!$D33, IF(M$16=6,'Технический лист'!$D40, IF(M$16=7,'Технический лист'!$D47,IF(M$16=8, 'Технический лист'!$D54, IF(M$16=9,'Технический лист'!$D61,IF(M$16=10, 'Технический лист'!$D68))))))))) -> 2 | N14: =IF(N$16=2,'Технический лист'!$D12,IF(N$16=3,'Технический лист'!$D19,IF(N$16=4,'Технический лист'!$D26, IF(N$16=5, 'Технический лист'!$D33, IF(N$16=6,'Технический лист'!$D40, IF(N$16=7,'Технический лист'!$D47,IF(N$16=8, 'Технический лист'!$D54, IF(N$16=9,'Технический лист'!$D61,IF(N$16=10, 'Технический лист'!$D68))))))))) -> 2 | O14: =IF(O$16=2,'Технический лист'!$D12,IF(O$16=3,'Технический лист'!$D19,IF(O$16=4,'Технический лист'!$D26, IF(O$16=5, 'Технический лист'!$D33, IF(O$16=6,'Технический лист'!$D40, IF(O$16=7,'Технический лист'!$D47,IF(O$16=8, 'Технический лист'!$D54, IF(O$16=9,'Технический лист'!$D61,IF(O$16=10, 'Технический лист'!$D68))))))))) -> 2 | P14: =IF(P$16=2,'Технический лист'!$D12,IF(P$16=3,'Технический лист'!$D19,IF(P$16=4,'Технический лист'!$D26, IF(P$16=5, 'Технический лист'!$D33, IF(P$16=6,'Технический лист'!$D40, IF(P$16=7,'Технический лист'!$D47,IF(P$16=8, 'Технический лист'!$D54, IF(P$16=9,'Технический лист'!$D61,IF(P$16=10, 'Технический лист'!$D68))))))))) -> 2 | Q14: =IF(Q$16=2,'Технический лист'!$D12,IF(Q$16=3,'Технический лист'!$D19,IF(Q$16=4,'Технический лист'!$D26, IF(Q$16=5, 'Технический лист'!$D33, IF(Q$16=6,'Технический лист'!$D40, IF(Q$16=7,'Технический лист'!$D47,IF(Q$16=8, 'Технический лист'!$D54, IF(Q$16=9,'Технический лист'!$D61,IF(Q$16=10, 'Технический лист'!$D68))))))))) -> 2 | R14: =IF(R$16=2,'Технический лист'!$D12,IF(R$16=3,'Технический лист'!$D19,IF(R$16=4,'Технический лист'!$D26, IF(R$16=5, 'Технический лист'!$D33, IF(R$16=6,'Технический лист'!$D40, IF(R$16=7,'Технический лист'!$D47,IF(R$16=8, 'Технический лист'!$D54, IF(R$16=9,'Технический лист'!$D61,IF(R$16=10, 'Технический лист'!$D68))))))))) -> 2 | S14: =IF(S$16=2,'Технический лист'!$D12,IF(S$16=3,'Технический лист'!$D19,IF(S$16=4,'Технический лист'!$D26, IF(S$16=5, 'Технический лист'!$D33, IF(S$16=6,'Технический лист'!$D40, IF(S$16=7,'Технический лист'!$D47,IF(S$16=8, 'Технический лист'!$D54, IF(S$16=9,'Технический лист'!$D61,IF(S$16=10, 'Технический лист'!$D68))))))))) -> 2 | T14: =IF(T$16=2,'Технический лист'!$D12,IF(T$16=3,'Технический лист'!$D19,IF(T$16=4,'Технический лист'!$D26, IF(T$16=5, 'Технический лист'!$D33, IF(T$16=6,'Технический лист'!$D40, IF(T$16=7,'Технический лист'!$D47,IF(T$16=8, 'Технический лист'!$D54, IF(T$16=9,'Технический лист'!$D61,IF(T$16=10, 'Технический лист'!$D68))))))))) -> 2 | U14: =IF(U$16=2,'Технический лист'!$D12,IF(U$16=3,'Технический лист'!$D19,IF(U$16=4,'Технический лист'!$D26, IF(U$16=5, 'Технический лист'!$D33, IF(U$16=6,'Технический лист'!$D40, IF(U$16=7,'Технический лист'!$D47,IF(U$16=8, 'Технический лист'!$D54, IF(U$16=9,'Технический лист'!$D61,IF(U$16=10, 'Технический лист'!$D68))))))))) -> 2 | V14: =IF(V$16=2,'Технический лист'!$D12,IF(V$16=3,'Технический лист'!$D19,IF(V$16=4,'Технический лист'!$D26, IF(V$16=5, 'Технический лист'!$D33, IF(V$16=6,'Технический лист'!$D40, IF(V$16=7,'Технический лист'!$D47,IF(V$16=8, 'Технический лист'!$D54, IF(V$16=9,'Технический лист'!$D61,IF(V$16=10, 'Технический лист'!$D68))))))))) -> 2 | W14: =IF(W$16=2,'Технический лист'!$D12,IF(W$16=3,'Технический лист'!$D19,IF(W$16=4,'Технический лист'!$D26, IF(W$16=5, 'Технический лист'!$D33, IF(W$16=6,'Технический лист'!$D40, IF(W$16=7,'Технический лист'!$D47,IF(W$16=8, 'Технический лист'!$D54, IF(W$16=9,'Технический лист'!$D61,IF(W$16=10, 'Технический лист'!$D68))))))))) -> 2 | X14: =IF(X$16=2,'Технический лист'!$D12,IF(X$16=3,'Технический лист'!$D19,IF(X$16=4,'Технический лист'!$D26, IF(X$16=5, 'Технический лист'!$D33, IF(X$16=6,'Технический лист'!$D40, IF(X$16=7,'Технический лист'!$D47,IF(X$16=8, 'Технический лист'!$D54, IF(X$16=9,'Технический лист'!$D61,IF(X$16=10, 'Технический лист'!$D68))))))))) -> 2 | Y14: =IF(Y$16=2,'Технический лист'!$D12,IF(Y$16=3,'Технический лист'!$D19,IF(Y$16=4,'Технический лист'!$D26, IF(Y$16=5, 'Технический лист'!$D33, IF(Y$16=6,'Технический лист'!$D40, IF(Y$16=7,'Технический лист'!$D47,IF(Y$16=8, 'Технический лист'!$D54, IF(Y$16=9,'Технический лист'!$D61,IF(Y$16=10, 'Технический лист'!$D68))))))))) -> 2 | Z14: =IF(Z$16=2,'Технический лист'!$D12,IF(Z$16=3,'Технический лист'!$D19,IF(Z$16=4,'Технический лист'!$D26, IF(Z$16=5, 'Технический лист'!$D33, IF(Z$16=6,'Технический лист'!$D40, IF(Z$16=7,'Технический лист'!$D47,IF(Z$16=8, 'Технический лист'!$D54, IF(Z$16=9,'Технический лист'!$D61,IF(Z$16=10, 'Технический лист'!$D68))))))))) -> 2 | AA14: =IF(AA$16=2,'Технический лист'!$D12,IF(AA$16=3,'Технический лист'!$D19,IF(AA$16=4,'Технический лист'!$D26, IF(AA$16=5, 'Технический лист'!$D33, IF(AA$16=6,'Технический лист'!$D40, IF(AA$16=7,'Технический лист'!$D47,IF(AA$16=8, 'Технический лист'!$D54, IF(AA$16=9,'Технический лист'!$D61,IF(AA$16=10, 'Технический лист'!$D68))))))))) -> 2 | AB14: =IF(AB$16=2,'Технический лист'!$D12,IF(AB$16=3,'Технический лист'!$D19,IF(AB$16=4,'Технический лист'!$D26, IF(AB$16=5, 'Технический лист'!$D33, IF(AB$16=6,'Технический лист'!$D40, IF(AB$16=7,'Технический лист'!$D47,IF(AB$16=8, 'Технический лист'!$D54, IF(AB$16=9,'Технический лист'!$D61,IF(AB$16=10, 'Технический лист'!$D68))))))))) -> 2 | AC14: =IF(AC$16=2,'Технический лист'!$D12,IF(AC$16=3,'Технический лист'!$D19,IF(AC$16=4,'Технический лист'!$D26, IF(AC$16=5, 'Технический лист'!$D33, IF(AC$16=6,'Технический лист'!$D40, IF(AC$16=7,'Технический лист'!$D47,IF(AC$16=8, 'Технический лист'!$D54, IF(AC$16=9,'Технический лист'!$D61,IF(AC$16=10, 'Технический лист'!$D68))))))))) -> 2 | AD14: =IF(AD$16=2,'Технический лист'!$D12,IF(AD$16=3,'Технический лист'!$D19,IF(AD$16=4,'Технический лист'!$D26, IF(AD$16=5, 'Технический лист'!$D33, IF(AD$16=6,'Технический лист'!$D40, IF(AD$16=7,'Технический лист'!$D47,IF(AD$16=8, 'Технический лист'!$D54, IF(AD$16=9,'Технический лист'!$D61,IF(AD$16=10, 'Технический лист'!$D68))))))))) -> 2 | AE14: =IF(AE$16=2,'Технический лист'!$D12,IF(AE$16=3,'Технический лист'!$D19,IF(AE$16=4,'Технический лист'!$D26, IF(AE$16=5, 'Технический лист'!$D33, IF(AE$16=6,'Технический лист'!$D40, IF(AE$16=7,'Технический лист'!$D47,IF(AE$16=8, 'Технический лист'!$D54, IF(AE$16=9,'Технический лист'!$D61,IF(AE$16=10, 'Технический лист'!$D68))))))))) -> 2 | AF14: =IF(AF$16=2,'Технический лист'!$D12,IF(AF$16=3,'Технический лист'!$D19,IF(AF$16=4,'Технический лист'!$D26, IF(AF$16=5, 'Технический лист'!$D33, IF(AF$16=6,'Технический лист'!$D40, IF(AF$16=7,'Технический лист'!$D47,IF(AF$16=8, 'Технический лист'!$D54, IF(AF$16=9,'Технический лист'!$D61,IF(AF$16=10, 'Технический лист'!$D68))))))))) -> 2 | AG14: =IF(AG$16=2,'Технический лист'!$D12,IF(AG$16=3,'Технический лист'!$D19,IF(AG$16=4,'Технический лист'!$D26, IF(AG$16=5, 'Технический лист'!$D33, IF(AG$16=6,'Технический лист'!$D40, IF(AG$16=7,'Технический лист'!$D47,IF(AG$16=8, 'Технический лист'!$D54, IF(AG$16=9,'Технический лист'!$D61,IF(AG$16=10, 'Технический лист'!$D68))))))))) -> 2 | AH14: =IF(AH$16=2,'Технический лист'!$D12,IF(AH$16=3,'Технический лист'!$D19,IF(AH$16=4,'Технический лист'!$D26, IF(AH$16=5, 'Технический лист'!$D33, IF(AH$16=6,'Технический лист'!$D40, IF(AH$16=7,'Технический лист'!$D47,IF(AH$16=8, 'Технический лист'!$D54, IF(AH$16=9,'Технический лист'!$D61,IF(AH$16=10, 'Технический лист'!$D68))))))))) -> 2 | AI14: =IF(AI$16=2,'Технический лист'!$D12,IF(AI$16=3,'Технический лист'!$D19,IF(AI$16=4,'Технический лист'!$D26, IF(AI$16=5, 'Технический лист'!$D33, IF(AI$16=6,'Технический лист'!$D40, IF(AI$16=7,'Технический лист'!$D47,IF(AI$16=8, 'Технический лист'!$D54, IF(AI$16=9,'Технический лист'!$D61,IF(AI$16=10, 'Технический лист'!$D68))))))))) -> 2 | AJ14: =IF(AJ$16=2,'Технический лист'!$D12,IF(AJ$16=3,'Технический лист'!$D19,IF(AJ$16=4,'Технический лист'!$D26, IF(AJ$16=5, 'Технический лист'!$D33, IF(AJ$16=6,'Технический лист'!$D40, IF(AJ$16=7,'Технический лист'!$D47,IF(AJ$16=8, 'Технический лист'!$D54, IF(AJ$16=9,'Технический лист'!$D61,IF(AJ$16=10, 'Технический лист'!$D68))))))))) -> 2 | AK14: =IF(AK$16=2,'Технический лист'!$D12,IF(AK$16=3,'Технический лист'!$D19,IF(AK$16=4,'Технический лист'!$D26, IF(AK$16=5, 'Технический лист'!$D33, IF(AK$16=6,'Технический лист'!$D40, IF(AK$16=7,'Технический лист'!$D47,IF(AK$16=8, 'Технический лист'!$D54, IF(AK$16=9,'Технический лист'!$D61,IF(AK$16=10, 'Технический лист'!$D68))))))))) -> 2 | AL14: =IF(AL$16=2,'Технический лист'!$D12,IF(AL$16=3,'Технический лист'!$D19,IF(AL$16=4,'Технический лист'!$D26, IF(AL$16=5, 'Технический лист'!$D33, IF(AL$16=6,'Технический лист'!$D40, IF(AL$16=7,'Технический лист'!$D47,IF(AL$16=8, 'Технический лист'!$D54, IF(AL$16=9,'Технический лист'!$D61,IF(AL$16=10, 'Технический лист'!$D68))))))))) -> 2 | AM14: =IF(AM$16=2,'Технический лист'!$D12,IF(AM$16=3,'Технический лист'!$D19,IF(AM$16=4,'Технический лист'!$D26, IF(AM$16=5, 'Технический лист'!$D33, IF(AM$16=6,'Технический лист'!$D40, IF(AM$16=7,'Технический лист'!$D47,IF(AM$16=8, 'Технический лист'!$D54, IF(AM$16=9,'Технический лист'!$D61,IF(AM$16=10, 'Технический лист'!$D68))))))))) -> 2
B15: Количество кассовых аппаратов | C15: ед. | D15: =IF(D$16=2,'Технический лист'!$E$12,IF(D$16=3,'Технический лист'!$E$19,IF(D$16=4,'Технический лист'!$E$26, IF(D$16=5, 'Технический лист'!$E$33, IF(D$16=6,'Технический лист'!$E$40, IF(D$16=7,'Технический лист'!$E$47,IF(D$16=8, 'Технический лист'!$E$54, IF(D$16=9,'Технический лист'!$E$61,IF(D$16=10, 'Технический лист'!$E$68))))))))) -> 1 | E15: =IF(E$16=2,'Технический лист'!$E$12,IF(E$16=3,'Технический лист'!$E$19,IF(E$16=4,'Технический лист'!$E$26, IF(E$16=5, 'Технический лист'!$E$33, IF(E$16=6,'Технический лист'!$E$40, IF(E$16=7,'Технический лист'!$E$47,IF(E$16=8, 'Технический лист'!$E$54, IF(E$16=9,'Технический лист'!$E$61,IF(E$16=10, 'Технический лист'!$E$68))))))))) -> 1 | F15: =IF(F$16=2,'Технический лист'!$E$12,IF(F$16=3,'Технический лист'!$E$19,IF(F$16=4,'Технический лист'!$E$26, IF(F$16=5, 'Технический лист'!$E$33, IF(F$16=6,'Технический лист'!$E$40, IF(F$16=7,'Технический лист'!$E$47,IF(F$16=8, 'Технический лист'!$E$54, IF(F$16=9,'Технический лист'!$E$61,IF(F$16=10, 'Технический лист'!$E$68))))))))) -> 1 | G15: =IF(G$16=2,'Технический лист'!$E$12,IF(G$16=3,'Технический лист'!$E$19,IF(G$16=4,'Технический лист'!$E$26, IF(G$16=5, 'Технический лист'!$E$33, IF(G$16=6,'Технический лист'!$E$40, IF(G$16=7,'Технический лист'!$E$47,IF(G$16=8, 'Технический лист'!$E$54, IF(G$16=9,'Технический лист'!$E$61,IF(G$16=10, 'Технический лист'!$E$68))))))))) -> 1 | H15: =IF(H$16=2,'Технический лист'!$E$12,IF(H$16=3,'Технический лист'!$E$19,IF(H$16=4,'Технический лист'!$E$26, IF(H$16=5, 'Технический лист'!$E$33, IF(H$16=6,'Технический лист'!$E$40, IF(H$16=7,'Технический лист'!$E$47,IF(H$16=8, 'Технический лист'!$E$54, IF(H$16=9,'Технический лист'!$E$61,IF(H$16=10, 'Технический лист'!$E$68))))))))) -> 1 | I15: =IF(I$16=2,'Технический лист'!$E$12,IF(I$16=3,'Технический лист'!$E$19,IF(I$16=4,'Технический лист'!$E$26, IF(I$16=5, 'Технический лист'!$E$33, IF(I$16=6,'Технический лист'!$E$40, IF(I$16=7,'Технический лист'!$E$47,IF(I$16=8, 'Технический лист'!$E$54, IF(I$16=9,'Технический лист'!$E$61,IF(I$16=10, 'Технический лист'!$E$68))))))))) -> 1 | J15: =IF(J$16=2,'Технический лист'!$E$12,IF(J$16=3,'Технический лист'!$E$19,IF(J$16=4,'Технический лист'!$E$26, IF(J$16=5, 'Технический лист'!$E$33, IF(J$16=6,'Технический лист'!$E$40, IF(J$16=7,'Технический лист'!$E$47,IF(J$16=8, 'Технический лист'!$E$54, IF(J$16=9,'Технический лист'!$E$61,IF(J$16=10, 'Технический лист'!$E$68))))))))) -> 1 | K15: =IF(K$16=2,'Технический лист'!$E$12,IF(K$16=3,'Технический лист'!$E$19,IF(K$16=4,'Технический лист'!$E$26, IF(K$16=5, 'Технический лист'!$E$33, IF(K$16=6,'Технический лист'!$E$40, IF(K$16=7,'Технический лист'!$E$47,IF(K$16=8, 'Технический лист'!$E$54, IF(K$16=9,'Технический лист'!$E$61,IF(K$16=10, 'Технический лист'!$E$68))))))))) -> 1 | L15: =IF(L$16=2,'Технический лист'!$E$12,IF(L$16=3,'Технический лист'!$E$19,IF(L$16=4,'Технический лист'!$E$26, IF(L$16=5, 'Технический лист'!$E$33, IF(L$16=6,'Технический лист'!$E$40, IF(L$16=7,'Технический лист'!$E$47,IF(L$16=8, 'Технический лист'!$E$54, IF(L$16=9,'Технический лист'!$E$61,IF(L$16=10, 'Технический лист'!$E$68))))))))) -> 1 | M15: =IF(M$16=2,'Технический лист'!$E$12,IF(M$16=3,'Технический лист'!$E$19,IF(M$16=4,'Технический лист'!$E$26, IF(M$16=5, 'Технический лист'!$E$33, IF(M$16=6,'Технический лист'!$E$40, IF(M$16=7,'Технический лист'!$E$47,IF(M$16=8, 'Технический лист'!$E$54, IF(M$16=9,'Технический лист'!$E$61,IF(M$16=10, 'Технический лист'!$E$68))))))))) -> 1 | N15: =IF(N$16=2,'Технический лист'!$E$12,IF(N$16=3,'Технический лист'!$E$19,IF(N$16=4,'Технический лист'!$E$26, IF(N$16=5, 'Технический лист'!$E$33, IF(N$16=6,'Технический лист'!$E$40, IF(N$16=7,'Технический лист'!$E$47,IF(N$16=8, 'Технический лист'!$E$54, IF(N$16=9,'Технический лист'!$E$61,IF(N$16=10, 'Технический лист'!$E$68))))))))) -> 1 | O15: =IF(O$16=2,'Технический лист'!$E$12,IF(O$16=3,'Технический лист'!$E$19,IF(O$16=4,'Технический лист'!$E$26, IF(O$16=5, 'Технический лист'!$E$33, IF(O$16=6,'Технический лист'!$E$40, IF(O$16=7,'Технический лист'!$E$47,IF(O$16=8, 'Технический лист'!$E$54, IF(O$16=9,'Технический лист'!$E$61,IF(O$16=10, 'Технический лист'!$E$68))))))))) -> 1 | P15: =IF(P$16=2,'Технический лист'!$E$12,IF(P$16=3,'Технический лист'!$E$19,IF(P$16=4,'Технический лист'!$E$26, IF(P$16=5, 'Технический лист'!$E$33, IF(P$16=6,'Технический лист'!$E$40, IF(P$16=7,'Технический лист'!$E$47,IF(P$16=8, 'Технический лист'!$E$54, IF(P$16=9,'Технический лист'!$E$61,IF(P$16=10, 'Технический лист'!$E$68))))))))) -> 1 | Q15: =IF(Q$16=2,'Технический лист'!$E$12,IF(Q$16=3,'Технический лист'!$E$19,IF(Q$16=4,'Технический лист'!$E$26, IF(Q$16=5, 'Технический лист'!$E$33, IF(Q$16=6,'Технический лист'!$E$40, IF(Q$16=7,'Технический лист'!$E$47,IF(Q$16=8, 'Технический лист'!$E$54, IF(Q$16=9,'Технический лист'!$E$61,IF(Q$16=10, 'Технический лист'!$E$68))))))))) -> 1 | R15: =IF(R$16=2,'Технический лист'!$E$12,IF(R$16=3,'Технический лист'!$E$19,IF(R$16=4,'Технический лист'!$E$26, IF(R$16=5, 'Технический лист'!$E$33, IF(R$16=6,'Технический лист'!$E$40, IF(R$16=7,'Технический лист'!$E$47,IF(R$16=8, 'Технический лист'!$E$54, IF(R$16=9,'Технический лист'!$E$61,IF(R$16=10, 'Технический лист'!$E$68))))))))) -> 1 | S15: =IF(S$16=2,'Технический лист'!$E$12,IF(S$16=3,'Технический лист'!$E$19,IF(S$16=4,'Технический лист'!$E$26, IF(S$16=5, 'Технический лист'!$E$33, IF(S$16=6,'Технический лист'!$E$40, IF(S$16=7,'Технический лист'!$E$47,IF(S$16=8, 'Технический лист'!$E$54, IF(S$16=9,'Технический лист'!$E$61,IF(S$16=10, 'Технический лист'!$E$68))))))))) -> 1 | T15: =IF(T$16=2,'Технический лист'!$E$12,IF(T$16=3,'Технический лист'!$E$19,IF(T$16=4,'Технический лист'!$E$26, IF(T$16=5, 'Технический лист'!$E$33, IF(T$16=6,'Технический лист'!$E$40, IF(T$16=7,'Технический лист'!$E$47,IF(T$16=8, 'Технический лист'!$E$54, IF(T$16=9,'Технический лист'!$E$61,IF(T$16=10, 'Технический лист'!$E$68))))))))) -> 1 | U15: =IF(U$16=2,'Технический лист'!$E$12,IF(U$16=3,'Технический лист'!$E$19,IF(U$16=4,'Технический лист'!$E$26, IF(U$16=5, 'Технический лист'!$E$33, IF(U$16=6,'Технический лист'!$E$40, IF(U$16=7,'Технический лист'!$E$47,IF(U$16=8, 'Технический лист'!$E$54, IF(U$16=9,'Технический лист'!$E$61,IF(U$16=10, 'Технический лист'!$E$68))))))))) -> 1 | V15: =IF(V$16=2,'Технический лист'!$E$12,IF(V$16=3,'Технический лист'!$E$19,IF(V$16=4,'Технический лист'!$E$26, IF(V$16=5, 'Технический лист'!$E$33, IF(V$16=6,'Технический лист'!$E$40, IF(V$16=7,'Технический лист'!$E$47,IF(V$16=8, 'Технический лист'!$E$54, IF(V$16=9,'Технический лист'!$E$61,IF(V$16=10, 'Технический лист'!$E$68))))))))) -> 1 | W15: =IF(W$16=2,'Технический лист'!$E$12,IF(W$16=3,'Технический лист'!$E$19,IF(W$16=4,'Технический лист'!$E$26, IF(W$16=5, 'Технический лист'!$E$33, IF(W$16=6,'Технический лист'!$E$40, IF(W$16=7,'Технический лист'!$E$47,IF(W$16=8, 'Технический лист'!$E$54, IF(W$16=9,'Технический лист'!$E$61,IF(W$16=10, 'Технический лист'!$E$68))))))))) -> 1 | X15: =IF(X$16=2,'Технический лист'!$E$12,IF(X$16=3,'Технический лист'!$E$19,IF(X$16=4,'Технический лист'!$E$26, IF(X$16=5, 'Технический лист'!$E$33, IF(X$16=6,'Технический лист'!$E$40, IF(X$16=7,'Технический лист'!$E$47,IF(X$16=8, 'Технический лист'!$E$54, IF(X$16=9,'Технический лист'!$E$61,IF(X$16=10, 'Технический лист'!$E$68))))))))) -> 1 | Y15: =IF(Y$16=2,'Технический лист'!$E$12,IF(Y$16=3,'Технический лист'!$E$19,IF(Y$16=4,'Технический лист'!$E$26, IF(Y$16=5, 'Технический лист'!$E$33, IF(Y$16=6,'Технический лист'!$E$40, IF(Y$16=7,'Технический лист'!$E$47,IF(Y$16=8, 'Технический лист'!$E$54, IF(Y$16=9,'Технический лист'!$E$61,IF(Y$16=10, 'Технический лист'!$E$68))))))))) -> 1 | Z15: =IF(Z$16=2,'Технический лист'!$E$12,IF(Z$16=3,'Технический лист'!$E$19,IF(Z$16=4,'Технический лист'!$E$26, IF(Z$16=5, 'Технический лист'!$E$33, IF(Z$16=6,'Технический лист'!$E$40, IF(Z$16=7,'Технический лист'!$E$47,IF(Z$16=8, 'Технический лист'!$E$54, IF(Z$16=9,'Технический лист'!$E$61,IF(Z$16=10, 'Технический лист'!$E$68))))))))) -> 1 | AA15: =IF(AA$16=2,'Технический лист'!$E$12,IF(AA$16=3,'Технический лист'!$E$19,IF(AA$16=4,'Технический лист'!$E$26, IF(AA$16=5, 'Технический лист'!$E$33, IF(AA$16=6,'Технический лист'!$E$40, IF(AA$16=7,'Технический лист'!$E$47,IF(AA$16=8, 'Технический лист'!$E$54, IF(AA$16=9,'Технический лист'!$E$61,IF(AA$16=10, 'Технический лист'!$E$68))))))))) -> 1 | AB15: =IF(AB$16=2,'Технический лист'!$E$12,IF(AB$16=3,'Технический лист'!$E$19,IF(AB$16=4,'Технический лист'!$E$26, IF(AB$16=5, 'Технический лист'!$E$33, IF(AB$16=6,'Технический лист'!$E$40, IF(AB$16=7,'Технический лист'!$E$47,IF(AB$16=8, 'Технический лист'!$E$54, IF(AB$16=9,'Технический лист'!$E$61,IF(AB$16=10, 'Технический лист'!$E$68))))))))) -> 1 | AC15: =IF(AC$16=2,'Технический лист'!$E$12,IF(AC$16=3,'Технический лист'!$E$19,IF(AC$16=4,'Технический лист'!$E$26, IF(AC$16=5, 'Технический лист'!$E$33, IF(AC$16=6,'Технический лист'!$E$40, IF(AC$16=7,'Технический лист'!$E$47,IF(AC$16=8, 'Технический лист'!$E$54, IF(AC$16=9,'Технический лист'!$E$61,IF(AC$16=10, 'Технический лист'!$E$68))))))))) -> 1 | AD15: =IF(AD$16=2,'Технический лист'!$E$12,IF(AD$16=3,'Технический лист'!$E$19,IF(AD$16=4,'Технический лист'!$E$26, IF(AD$16=5, 'Технический лист'!$E$33, IF(AD$16=6,'Технический лист'!$E$40, IF(AD$16=7,'Технический лист'!$E$47,IF(AD$16=8, 'Технический лист'!$E$54, IF(AD$16=9,'Технический лист'!$E$61,IF(AD$16=10, 'Технический лист'!$E$68))))))))) -> 1 | AE15: =IF(AE$16=2,'Технический лист'!$E$12,IF(AE$16=3,'Технический лист'!$E$19,IF(AE$16=4,'Технический лист'!$E$26, IF(AE$16=5, 'Технический лист'!$E$33, IF(AE$16=6,'Технический лист'!$E$40, IF(AE$16=7,'Технический лист'!$E$47,IF(AE$16=8, 'Технический лист'!$E$54, IF(AE$16=9,'Технический лист'!$E$61,IF(AE$16=10, 'Технический лист'!$E$68))))))))) -> 1 | AF15: =IF(AF$16=2,'Технический лист'!$E$12,IF(AF$16=3,'Технический лист'!$E$19,IF(AF$16=4,'Технический лист'!$E$26, IF(AF$16=5, 'Технический лист'!$E$33, IF(AF$16=6,'Технический лист'!$E$40, IF(AF$16=7,'Технический лист'!$E$47,IF(AF$16=8, 'Технический лист'!$E$54, IF(AF$16=9,'Технический лист'!$E$61,IF(AF$16=10, 'Технический лист'!$E$68))))))))) -> 1 | AG15: =IF(AG$16=2,'Технический лист'!$E$12,IF(AG$16=3,'Технический лист'!$E$19,IF(AG$16=4,'Технический лист'!$E$26, IF(AG$16=5, 'Технический лист'!$E$33, IF(AG$16=6,'Технический лист'!$E$40, IF(AG$16=7,'Технический лист'!$E$47,IF(AG$16=8, 'Технический лист'!$E$54, IF(AG$16=9,'Технический лист'!$E$61,IF(AG$16=10, 'Технический лист'!$E$68))))))))) -> 1 | AH15: =IF(AH$16=2,'Технический лист'!$E$12,IF(AH$16=3,'Технический лист'!$E$19,IF(AH$16=4,'Технический лист'!$E$26, IF(AH$16=5, 'Технический лист'!$E$33, IF(AH$16=6,'Технический лист'!$E$40, IF(AH$16=7,'Технический лист'!$E$47,IF(AH$16=8, 'Технический лист'!$E$54, IF(AH$16=9,'Технический лист'!$E$61,IF(AH$16=10, 'Технический лист'!$E$68))))))))) -> 1 | AI15: =IF(AI$16=2,'Технический лист'!$E$12,IF(AI$16=3,'Технический лист'!$E$19,IF(AI$16=4,'Технический лист'!$E$26, IF(AI$16=5, 'Технический лист'!$E$33, IF(AI$16=6,'Технический лист'!$E$40, IF(AI$16=7,'Технический лист'!$E$47,IF(AI$16=8, 'Технический лист'!$E$54, IF(AI$16=9,'Технический лист'!$E$61,IF(AI$16=10, 'Технический лист'!$E$68))))))))) -> 1 | AJ15: =IF(AJ$16=2,'Технический лист'!$E$12,IF(AJ$16=3,'Технический лист'!$E$19,IF(AJ$16=4,'Технический лист'!$E$26, IF(AJ$16=5, 'Технический лист'!$E$33, IF(AJ$16=6,'Технический лист'!$E$40, IF(AJ$16=7,'Технический лист'!$E$47,IF(AJ$16=8, 'Технический лист'!$E$54, IF(AJ$16=9,'Технический лист'!$E$61,IF(AJ$16=10, 'Технический лист'!$E$68))))))))) -> 1 | AK15: =IF(AK$16=2,'Технический лист'!$E$12,IF(AK$16=3,'Технический лист'!$E$19,IF(AK$16=4,'Технический лист'!$E$26, IF(AK$16=5, 'Технический лист'!$E$33, IF(AK$16=6,'Технический лист'!$E$40, IF(AK$16=7,'Технический лист'!$E$47,IF(AK$16=8, 'Технический лист'!$E$54, IF(AK$16=9,'Технический лист'!$E$61,IF(AK$16=10, 'Технический лист'!$E$68))))))))) -> 1 | AL15: =IF(AL$16=2,'Технический лист'!$E$12,IF(AL$16=3,'Технический лист'!$E$19,IF(AL$16=4,'Технический лист'!$E$26, IF(AL$16=5, 'Технический лист'!$E$33, IF(AL$16=6,'Технический лист'!$E$40, IF(AL$16=7,'Технический лист'!$E$47,IF(AL$16=8, 'Технический лист'!$E$54, IF(AL$16=9,'Технический лист'!$E$61,IF(AL$16=10, 'Технический лист'!$E$68))))))))) -> 1 | AM15: =IF(AM$16=2,'Технический лист'!$E$12,IF(AM$16=3,'Технический лист'!$E$19,IF(AM$16=4,'Технический лист'!$E$26, IF(AM$16=5, 'Технический лист'!$E$33, IF(AM$16=6,'Технический лист'!$E$40, IF(AM$16=7,'Технический лист'!$E$47,IF(AM$16=8, 'Технический лист'!$E$54, IF(AM$16=9,'Технический лист'!$E$61,IF(AM$16=10, 'Технический лист'!$E$68))))))))) -> 1
B16: Количество кассовых зон | C16: ед. | D16: =D8 -> 3 | E16: =D16 -> 3 | F16: =E16 -> 3 | G16: 3 | H16: 3 | I16: 3 | J16: 3 | K16: 3 | L16: 3 | M16: 3 | N16: 3 | O16: 3 | P16: 3 | Q16: 3 | R16: 3 | S16: 3 | T16: 3 | U16: 3 | V16: 3 | W16: 3 | X16: 3 | Y16: 3 | Z16: 3 | AA16: 3 | AB16: 3 | AC16: 3 | AD16: 3 | AE16: 3 | AF16: 3 | AG16: 3 | AH16: 3 | AI16: 3 | AJ16: 3 | AK16: 3 | AL16: 3 | AM16: 3
A19: 1. | B19: Прогноз расходов без покупки или аренды Терминалов
B20: OPEX | C20: тыс. руб. | D20: =SUM(D21:D22) -> 275.812 | E20: =SUM(E21:E22) -> 175.812 | F20: 175.812 | G20: 175.812 | H20: =SUM(H21:H22) -> 175.812 | I20: 175.812 | J20: 175.812 | K20: 175.812 | L20: 175.812 | M20: 175.812 | N20: 175.812 | O20: 175.812 | P20: 175.812 | Q20: 175.812 | R20: 175.812 | S20: 175.812 | T20: 175.812 | U20: 175.812 | V20: 175.812 | W20: 175.812 | X20: 175.812 | Y20: 175.812 | Z20: 175.812 | AA20: 175.812 | AB20: 175.812 | AC20: 175.812 | AD20: 175.812 | AE20: 175.812 | AF20: 175.812 | AG20: 175.812 | AH20: 175.812 | AI20: 175.812 | AJ20: 175.812 | AK20: 175.812 | AL20: 175.812 | AM20: 175.812
B21: - расходы на оплату труда сотрудников | C21: тыс. руб. | D21: =D8*Предпосылки!$F$16/1000 -> 175.812 | E21: =E8*Предпосылки!$F$16/1000 -> 175.812 | F21: =F8*Предпосылки!$F$16/1000 -> 175.812 | G21: =G8*Предпосылки!$F$16/1000 -> 175.812 | H21: =H8*Предпосылки!$F$16/1000 -> 175.812 | I21: =I8*Предпосылки!$F$16/1000 -> 175.812 | J21: =J8*Предпосылки!$F$16/1000 -> 175.812 | K21: =K8*Предпосылки!$F$16/1000 -> 175.812 | L21: =L8*Предпосылки!$F$16/1000 -> 175.812 | M21: =M8*Предпосылки!$F$16/1000 -> 175.812 | N21: =N8*Предпосылки!$F$16/1000 -> 175.812 | O21: =O8*Предпосылки!$F$16/1000 -> 175.812 | P21: =P8*Предпосылки!$F$16/1000 -> 175.812 | Q21: =Q8*Предпосылки!$F$16/1000 -> 175.812 | R21: =R8*Предпосылки!$F$16/1000 -> 175.812 | S21: =S8*Предпосылки!$F$16/1000 -> 175.812 | T21: =T8*Предпосылки!$F$16/1000 -> 175.812 | U21: =U8*Предпосылки!$F$16/1000 -> 175.812 | V21: =V8*Предпосылки!$F$16/1000 -> 175.812 | W21: =W8*Предпосылки!$F$16/1000 -> 175.812 | X21: =X8*Предпосылки!$F$16/1000 -> 175.812 | Y21: =Y8*Предпосылки!$F$16/1000 -> 175.812 | Z21: =Z8*Предпосылки!$F$16/1000 -> 175.812 | AA21: =AA8*Предпосылки!$F$16/1000 -> 175.812 | AB21: =AB8*Предпосылки!$F$16/1000 -> 175.812 | AC21: =AC8*Предпосылки!$F$16/1000 -> 175.812 | AD21: =AD8*Предпосылки!$F$16/1000 -> 175.812 | AE21: =AE8*Предпосылки!$F$16/1000 -> 175.812 | AF21: =AF8*Предпосылки!$F$16/1000 -> 175.812 | AG21: =AG8*Предпосылки!$F$16/1000 -> 175.812 | AH21: =AH8*Предпосылки!$F$16/1000 -> 175.812 | AI21: =AI8*Предпосылки!$F$16/1000 -> 175.812 | AJ21: =AJ8*Предпосылки!$F$16/1000 -> 175.812 | AK21: =AK8*Предпосылки!$F$16/1000 -> 175.812 | AL21: =AL8*Предпосылки!$F$16/1000 -> 175.812 | AM21: =AM8*Предпосылки!$F$16/1000 -> 175.812
B22: - расходы на разметку блюд | C22: тыс. руб. | D22: =IF(Анкета!$E$23="7 календарных дней",'Технический лист'!$C$73/1000,IF(Анкета!$E$23="14 календарных дней",'Технический лист'!$C$74/1000,IF(Анкета!$E$23="21 календарных дней",'Технический лист'!$C$75/1000,IF(Анкета!$E$23="30 календарных дней",'Технический лист'!$C$76/1000,IF(Анкета!$E$23="более 30 календарных дней",'Технический лист'!$C$77/1000, IF(Анкета!$E$23=100,'Технический лист'!$C$82/1000, IF(Анкета!$E$23=200,'Технический лист'!$C$83/1000, IF(Анкета!$E$23=300,'Технический лист'!$C$84/1000, IF(Анкета!$E$23=400,'Технический лист'!$C$85/1000, IF(Анкета!$E$23=500,'Технический лист'!$C$86/1000, IF(Анкета!$E$23=1000,'Технический лист'!$C$87/1000, IF(Анкета!$E$23=1500,'Технический лист'!$C$88/1000, IF(Анкета!$E$23=2000,'Технический лист'!$C$89/1000))))))))))))) -> 100
B23: CAPEX | C23: тыс. руб. | D23: =SUM(D24:D25) -> 0
B24: - расходы на покупку униформы | C24: тыс. руб. | D24: =IF(Анкета!$E$7="Стартап", D8*Предпосылки!$F$31, 0)/1000 -> 0
B25: - расходы на покупку оборудования для кассовых точек | C25: тыс. руб. | D25: =IF(Анкета!$E$7="Действующая", 0, Предпосылки!$F$32*D8)/1000 -> 0
B26: РАСХОДЫ всего | C26: тыс. руб. | D26: =D20+D23 -> 275.812 | E26: =E20+E23 -> 175.812 | F26: =F20+F23 -> 175.812 | G26: 175.812 | H26: 175.812 | I26: 175.812 | J26: 175.812 | K26: 175.812 | L26: 175.812 | M26: 175.812 | N26: 175.812 | O26: 175.812 | P26: 175.812 | Q26: 175.812 | R26: 175.812 | S26: 175.812 | T26: 175.812 | U26: 175.812 | V26: 175.812 | W26: 175.812 | X26: 175.812 | Y26: 175.812 | Z26: 175.812 | AA26: 175.812 | AB26: 175.812 | AC26: 175.812 | AD26: 175.812 | AE26: 175.812 | AF26: 175.812 | AG26: 175.812 | AH26: 175.812 | AI26: 175.812 | AJ26: 175.812 | AK26: 175.812 | AL26: 175.812 | AM26: 175.812
B28: Экономический эффект без покупки или аренды терминалов
B29: Свободный денежный поток | C29: тыс. руб. | D29: =D26 -> 275.812 | E29: =E26 -> 175.812 | F29: 175.812 | G29: 175.812 | H29: 175.812 | I29: 175.812 | J29: 175.812 | K29: 175.812 | L29: 175.812 | M29: 175.812 | N29: 175.812 | O29: 175.812 | P29: 175.812 | Q29: 175.812 | R29: 175.812 | S29: 175.812 | T29: 175.812 | U29: 175.812 | V29: 175.812 | W29: 175.812 | X29: 175.812 | Y29: 175.812 | Z29: 175.812 | AA29: 175.812 | AB29: 175.812 | AC29: 175.812 | AD29: 175.812 | AE29: 175.812 | AF29: 175.812 | AG29: 175.812 | AH29: 175.812 | AI29: 175.812 | AJ29: 175.812 | AK29: 175.812 | AL29: 175.812 | AM29: 175.812
B30: Свободный денежный поток накопленным итогом | C30: тыс. руб. | D30: =D29 -> 275.812 | E30: =D30+E29 -> 451.624 | F30: =E30+F29 -> 627.436 | G30: 803.248 | H30: 979.06 | I30: 1154.872 | J30: 1330.684 | K30: 1506.496 | L30: 1682.308 | M30: 1858.12 | N30: 2033.932 | O30: 2209.744 | P30: 2385.556 | Q30: 2561.368 | R30: 2737.18 | S30: 2912.992 | T30: 3088.804 | U30: 3264.616 | V30: 3440.428 | W30: 3616.24 | X30: 3792.052 | Y30: 3967.864 | Z30: 4143.676 | AA30: 4319.488 | AB30: 4495.3 | AC30: 4671.112 | AD30: 4846.924 | AE30: 5022.736 | AF30: 5198.548 | AG30: 5374.36 | AH30: 5550.172 | AI30: 5725.984 | AJ30: 5901.796 | AK30: 6077.608 | AL30: 6253.42 | AM30: 6429.232
B31: Дисконтируемый денежный поток (DCF) | C31: тыс. руб. | D31: =D29/(1+Предпосылки!$F$51)^D1 -> 274.9120096 | E31: =E29/(1+Предпосылки!$F$51)^E1 -> 174.6665027 | F31: =F29/(1+Предпосылки!$F$51)^F1 -> 174.0965559 | G31: =G29/(1+Предпосылки!$F$51)^G1 -> 173.5284688 | H31: =H29/(1+Предпосылки!$F$51)^H1 -> 172.9622355 | I31: =I29/(1+Предпосылки!$F$51)^I1 -> 172.3978498 | J31: =J29/(1+Предпосылки!$F$51)^J1 -> 171.8353057 | K31: =K29/(1+Предпосылки!$F$51)^K1 -> 171.2745972 | L31: =L29/(1+Предпосылки!$F$51)^L1 -> 170.7157184 | M31: =M29/(1+Предпосылки!$F$51)^M1 -> 170.1586632 | N31: =N29/(1+Предпосылки!$F$51)^N1 -> 169.6034257 | O31: =O29/(1+Предпосылки!$F$51)^O1 -> 169.05 | P31: =P29/(1+Предпосылки!$F$51)^P1 -> 168.4983801 | Q31: =Q29/(1+Предпосылки!$F$51)^Q1 -> 167.9485603 | R31: =R29/(1+Предпосылки!$F$51)^R1 -> 167.4005345 | S31: =S29/(1+Предпосылки!$F$51)^S1 -> 166.8542969 | T31: =T29/(1+Предпосылки!$F$51)^T1 -> 166.3098418 | U31: =U29/(1+Предпосылки!$F$51)^U1 -> 165.7671632 | V31: =V29/(1+Предпосылки!$F$51)^V1 -> 165.2262555 | W31: =W29/(1+Предпосылки!$F$51)^W1 -> 164.6871127 | X31: =X29/(1+Предпосылки!$F$51)^X1 -> 164.1497292 | Y31: =Y29/(1+Предпосылки!$F$51)^Y1 -> 163.6140992 | Z31: =Z29/(1+Предпосылки!$F$51)^Z1 -> 163.080217 | AA31: =AA29/(1+Предпосылки!$F$51)^AA1 -> 162.5480769 | AB31: =AB29/(1+Предпосылки!$F$51)^AB1 -> 162.0176732 | AC31: =AC29/(1+Предпосылки!$F$51)^AC1 -> 161.4890003 | AD31: =AD29/(1+Предпосылки!$F$51)^AD1 -> 160.9620524 | AE31: =AE29/(1+Предпосылки!$F$51)^AE1 -> 160.436824 | AF31: =AF29/(1+Предпосылки!$F$51)^AF1 -> 159.9133094 | AG31: =AG29/(1+Предпосылки!$F$51)^AG1 -> 159.3915031 | AH31: =AH29/(1+Предпосылки!$F$51)^AH1 -> 158.8713995 | AI31: =AI29/(1+Предпосылки!$F$51)^AI1 -> 158.352993 | AJ31: =AJ29/(1+Предпосылки!$F$51)^AJ1 -> 157.8362781 | AK31: =AK29/(1+Предпосылки!$F$51)^AK1 -> 157.3212493 | AL31: =AL29/(1+Предпосылки!$F$51)^AL1 -> 156.807901 | AM31: =AM29/(1+Предпосылки!$F$51)^AM1 -> 156.2962278
B32: Накопленный DCF по расходам | C32: тыс. руб. | D32: =SUM(D31:AM31) -> 6060.982011
A34: 2. | B34: Прогноз расходов при покупке или аренде Терминалов
B35: OPEX | C35: тыс. руб. | D35: =SUM(D36:D39) -> 232.208 | E35: =SUM(E36:E39) -> 88.604 | F35: 88.604 | G35: 88.604 | H35: =SUM(H36:H39) -> 88.604 | I35: 88.604 | J35: 88.604 | K35: 88.604 | L35: 88.604 | M35: 88.604 | N35: 88.604 | O35: 88.604 | P35: 88.604 | Q35: 88.604 | R35: 88.604 | S35: 88.604 | T35: 88.604 | U35: 88.604 | V35: 88.604 | W35: 88.604 | X35: 88.604 | Y35: 88.604 | Z35: 88.604 | AA35: 88.604 | AB35: 88.604 | AC35: 88.604 | AD35: 88.604 | AE35: 88.604 | AF35: 88.604 | AG35: 88.604 | AH35: 88.604 | AI35: 88.604 | AJ35: 88.604 | AK35: 88.604 | AL35: 88.604 | AM35: 88.604
B36: - расходы на оплату труда сотрудников | C36: тыс. руб. | D36: =IF(Анкета!$E$7="Стартап",D15*Предпосылки!$F$16,D12*Предпосылки!$F$16)/1000 -> 117.208 | E36: =IF(Анкета!$E$7="Стартап",E15*Предпосылки!$F$16,E12*Предпосылки!$F$16)/1000 -> 58.604 | F36: =IF(Анкета!$E$7="Стартап",F15*Предпосылки!$F$16,F12*Предпосылки!$F$16)/1000 -> 58.604 | G36: =IF(Анкета!$E$7="Стартап",G15*Предпосылки!$F$16,G12*Предпосылки!$F$16)/1000 -> 58.604 | H36: =IF(Анкета!$E$7="Стартап",H15*Предпосылки!$F$16,H12*Предпосылки!$F$16)/1000 -> 58.604 | I36: =IF(Анкета!$E$7="Стартап",I15*Предпосылки!$F$16,I12*Предпосылки!$F$16)/1000 -> 58.604 | J36: =IF(Анкета!$E$7="Стартап",J15*Предпосылки!$F$16,J12*Предпосылки!$F$16)/1000 -> 58.604 | K36: =IF(Анкета!$E$7="Стартап",K15*Предпосылки!$F$16,K12*Предпосылки!$F$16)/1000 -> 58.604 | L36: =IF(Анкета!$E$7="Стартап",L15*Предпосылки!$F$16,L12*Предпосылки!$F$16)/1000 -> 58.604 | M36: =IF(Анкета!$E$7="Стартап",M15*Предпосылки!$F$16,M12*Предпосылки!$F$16)/1000 -> 58.604 | N36: =IF(Анкета!$E$7="Стартап",N15*Предпосылки!$F$16,N12*Предпосылки!$F$16)/1000 -> 58.604 | O36: =IF(Анкета!$E$7="Стартап",O15*Предпосылки!$F$16,O12*Предпосылки!$F$16)/1000 -> 58.604 | P36: =IF(Анкета!$E$7="Стартап",P15*Предпосылки!$F$16,P12*Предпосылки!$F$16)/1000 -> 58.604 | Q36: =IF(Анкета!$E$7="Стартап",Q15*Предпосылки!$F$16,Q12*Предпосылки!$F$16)/1000 -> 58.604 | R36: =IF(Анкета!$E$7="Стартап",R15*Предпосылки!$F$16,R12*Предпосылки!$F$16)/1000 -> 58.604 | S36: =IF(Анкета!$E$7="Стартап",S15*Предпосылки!$F$16,S12*Предпосылки!$F$16)/1000 -> 58.604 | T36: =IF(Анкета!$E$7="Стартап",T15*Предпосылки!$F$16,T12*Предпосылки!$F$16)/1000 -> 58.604 | U36: =IF(Анкета!$E$7="Стартап",U15*Предпосылки!$F$16,U12*Предпосылки!$F$16)/1000 -> 58.604 | V36: =IF(Анкета!$E$7="Стартап",V15*Предпосылки!$F$16,V12*Предпосылки!$F$16)/1000 -> 58.604 | W36: =IF(Анкета!$E$7="Стартап",W15*Предпосылки!$F$16,W12*Предпосылки!$F$16)/1000 -> 58.604 | X36: =IF(Анкета!$E$7="Стартап",X15*Предпосылки!$F$16,X12*Предпосылки!$F$16)/1000 -> 58.604 | Y36: =IF(Анкета!$E$7="Стартап",Y15*Предпосылки!$F$16,Y12*Предпосылки!$F$16)/1000 -> 58.604 | Z36: =IF(Анкета!$E$7="Стартап",Z15*Предпосылки!$F$16,Z12*Предпосылки!$F$16)/1000 -> 58.604 | AA36: =IF(Анкета!$E$7="Стартап",AA15*Предпосылки!$F$16,AA12*Предпосылки!$F$16)/1000 -> 58.604 | AB36: =IF(Анкета!$E$7="Стартап",AB15*Предпосылки!$F$16,AB12*Предпосылки!$F$16)/1000 -> 58.604 | AC36: =IF(Анкета!$E$7="Стартап",AC15*Предпосылки!$F$16,AC12*Предпосылки!$F$16)/1000 -> 58.604 | AD36: =IF(Анкета!$E$7="Стартап",AD15*Предпосылки!$F$16,AD12*Предпосылки!$F$16)/1000 -> 58.604 | AE36: =IF(Анкета!$E$7="Стартап",AE15*Предпосылки!$F$16,AE12*Предпосылки!$F$16)/1000 -> 58.604 | AF36: =IF(Анкета!$E$7="Стартап",AF15*Предпосылки!$F$16,AF12*Предпосылки!$F$16)/1000 -> 58.604 | AG36: =IF(Анкета!$E$7="Стартап",AG15*Предпосылки!$F$16,AG12*Предпосылки!$F$16)/1000 -> 58.604 | AH36: =IF(Анкета!$E$7="Стартап",AH15*Предпосылки!$F$16,AH12*Предпосылки!$F$16)/1000 -> 58.604 | AI36: =IF(Анкета!$E$7="Стартап",AI15*Предпосылки!$F$16,AI12*Предпосылки!$F$16)/1000 -> 58.604 | AJ36: =IF(Анкета!$E$7="Стартап",AJ15*Предпосылки!$F$16,AJ12*Предпосылки!$F$16)/1000 -> 58.604 | AK36: =IF(Анкета!$E$7="Стартап",AK15*Предпосылки!$F$16,AK12*Предпосылки!$F$16)/1000 -> 58.604 | AL36: =IF(Анкета!$E$7="Стартап",AL15*Предпосылки!$F$16,AL12*Предпосылки!$F$16)/1000 -> 58.604 | AM36: =IF(Анкета!$E$7="Стартап",AM15*Предпосылки!$F$16,AM12*Предпосылки!$F$16)/1000 -> 58.604
B37: - расходы на ТО и поддержку функционирования терминала | C37: тыс. руб. | D37: =IF(Анкета!$E$8="Покупка терминалов", IF(Анкета!$E$7="Стартап", D14*Предпосылки!$F$41, D11*Предпосылки!$F$41)/1000,) -> 15 | E37: =IF(Анкета!$E$8="Покупка терминалов", IF(Анкета!$E$7="Стартап", E14*Предпосылки!$F$41, E11*Предпосылки!$F$41)/1000,) -> 30 | F37: =IF(Анкета!$E$8="Покупка терминалов", IF(Анкета!$E$7="Стартап", F14*Предпосылки!$F$41, F11*Предпосылки!$F$41)/1000,) -> 30 | G37: =IF(Анкета!$E$8="Покупка терминалов", IF(Анкета!$E$7="Стартап", G14*Предпосылки!$F$41, G11*Предпосылки!$F$41)/1000,) -> 30 | H37: =IF(Анкета!$E$8="Покупка терминалов", IF(Анкета!$E$7="Стартап", H14*Предпосылки!$F$41, H11*Предпосылки!$F$41)/1000,) -> 30 | I37: =IF(Анкета!$E$8="Покупка терминалов", IF(Анкета!$E$7="Стартап", I14*Предпосылки!$F$41, I11*Предпосылки!$F$41)/1000,) -> 30 | J37: =IF(Анкета!$E$8="Покупка терминалов", IF(Анкета!$E$7="Стартап", J14*Предпосылки!$F$41, J11*Предпосылки!$F$41)/1000,) -> 30 | K37: =IF(Анкета!$E$8="Покупка терминалов", IF(Анкета!$E$7="Стартап", K14*Предпосылки!$F$41, K11*Предпосылки!$F$41)/1000,) -> 30 | L37: =IF(Анкета!$E$8="Покупка терминалов", IF(Анкета!$E$7="Стартап", L14*Предпосылки!$F$41, L11*Предпосылки!$F$41)/1000,) -> 30 | M37: =IF(Анкета!$E$8="Покупка терминалов", IF(Анкета!$E$7="Стартап", M14*Предпосылки!$F$41, M11*Предпосылки!$F$41)/1000,) -> 30 | N37: =IF(Анкета!$E$8="Покупка терминалов", IF(Анкета!$E$7="Стартап", N14*Предпосылки!$F$41, N11*Предпосылки!$F$41)/1000,) -> 30 | O37: =IF(Анкета!$E$8="Покупка терминалов", IF(Анкета!$E$7="Стартап", O14*Предпосылки!$F$41, O11*Предпосылки!$F$41)/1000,) -> 30 | P37: =IF(Анкета!$E$8="Покупка терминалов", IF(Анкета!$E$7="Стартап", P14*Предпосылки!$F$41, P11*Предпосылки!$F$41)/1000,) -> 30 | Q37: =IF(Анкета!$E$8="Покупка терминалов", IF(Анкета!$E$7="Стартап", Q14*Предпосылки!$F$41, Q11*Предпосылки!$F$41)/1000,) -> 30 | R37: =IF(Анкета!$E$8="Покупка терминалов", IF(Анкета!$E$7="Стартап", R14*Предпосылки!$F$41, R11*Предпосылки!$F$41)/1000,) -> 30 | S37: =IF(Анкета!$E$8="Покупка терминалов", IF(Анкета!$E$7="Стартап", S14*Предпосылки!$F$41, S11*Предпосылки!$F$41)/1000,) -> 30 | T37: =IF(Анкета!$E$8="Покупка терминалов", IF(Анкета!$E$7="Стартап", T14*Предпосылки!$F$41, T11*Предпосылки!$F$41)/1000,) -> 30 | U37: =IF(Анкета!$E$8="Покупка терминалов", IF(Анкета!$E$7="Стартап", U14*Предпосылки!$F$41, U11*Предпосылки!$F$41)/1000,) -> 30 | V37: =IF(Анкета!$E$8="Покупка терминалов", IF(Анкета!$E$7="Стартап", V14*Предпосылки!$F$41, V11*Предпосылки!$F$41)/1000,) -> 30 | W37: =IF(Анкета!$E$8="Покупка терминалов", IF(Анкета!$E$7="Стартап", W14*Предпосылки!$F$41, W11*Предпосылки!$F$41)/1000,) -> 30 | X37: =IF(Анкета!$E$8="Покупка терминалов", IF(Анкета!$E$7="Стартап", X14*Предпосылки!$F$41, X11*Предпосылки!$F$41)/1000,) -> 30 | Y37: =IF(Анкета!$E$8="Покупка терминалов", IF(Анкета!$E$7="Стартап", Y14*Предпосылки!$F$41, Y11*Предпосылки!$F$41)/1000,) -> 30 | Z37: =IF(Анкета!$E$8="Покупка терминалов", IF(Анкета!$E$7="Стартап", Z14*Предпосылки!$F$41, Z11*Предпосылки!$F$41)/1000,) -> 30 | AA37: =IF(Анкета!$E$8="Покупка терминалов", IF(Анкета!$E$7="Стартап", AA14*Предпосылки!$F$41, AA11*Предпосылки!$F$41)/1000,) -> 30 | AB37: =IF(Анкета!$E$8="Покупка терминалов", IF(Анкета!$E$7="Стартап", AB14*Предпосылки!$F$41, AB11*Предпосылки!$F$41)/1000,) -> 30 | AC37: =IF(Анкета!$E$8="Покупка терминалов", IF(Анкета!$E$7="Стартап", AC14*Предпосылки!$F$41, AC11*Предпосылки!$F$41)/1000,) -> 30 | AD37: =IF(Анкета!$E$8="Покупка терминалов", IF(Анкета!$E$7="Стартап", AD14*Предпосылки!$F$41, AD11*Предпосылки!$F$41)/1000,) -> 30 | AE37: =IF(Анкета!$E$8="Покупка терминалов", IF(Анкета!$E$7="Стартап", AE14*Предпосылки!$F$41, AE11*Предпосылки!$F$41)/1000,) -> 30 | AF37: =IF(Анкета!$E$8="Покупка терминалов", IF(Анкета!$E$7="Стартап", AF14*Предпосылки!$F$41, AF11*Предпосылки!$F$41)/1000,) -> 30 | AG37: =IF(Анкета!$E$8="Покупка терминалов", IF(Анкета!$E$7="Стартап", AG14*Предпосылки!$F$41, AG11*Предпосылки!$F$41)/1000,) -> 30 | AH37: =IF(Анкета!$E$8="Покупка терминалов", IF(Анкета!$E$7="Стартап", AH14*Предпосылки!$F$41, AH11*Предпосылки!$F$41)/1000,) -> 30 | AI37: =IF(Анкета!$E$8="Покупка терминалов", IF(Анкета!$E$7="Стартап", AI14*Предпосылки!$F$41, AI11*Предпосылки!$F$41)/1000,) -> 30 | AJ37: =IF(Анкета!$E$8="Покупка терминалов", IF(Анкета!$E$7="Стартап", AJ14*Предпосылки!$F$41, AJ11*Предпосылки!$F$41)/1000,) -> 30 | AK37: =IF(Анкета!$E$8="Покупка терминалов", IF(Анкета!$E$7="Стартап", AK14*Предпосылки!$F$41, AK11*Предпосылки!$F$41)/1000,) -> 30 | AL37: =IF(Анкета!$E$8="Покупка терминалов", IF(Анкета!$E$7="Стартап", AL14*Предпосылки!$F$41, AL11*Предпосылки!$F$41)/1000,) -> 30 | AM37: =IF(Анкета!$E$8="Покупка терминалов", IF(Анкета!$E$7="Стартап", AM14*Предпосылки!$F$41, AM11*Предпосылки!$F$41)/1000,) -> 30
B38: - расходы на аренду терминала | C38: тыс. руб. | D38: =IF(Анкета!$E$8="Аренда терминалов", IF(Анкета!$E$7="Стартап",D14*Предпосылки!$F$42/1000,D11*Предпосылки!$F$42/1000), 0) -> 0 | E38: =IF(Анкета!$E$8="Аренда терминалов", IF(Анкета!$E$7="Стартап",E14*Предпосылки!$F$42/1000,E11*Предпосылки!$F$42/1000), 0) -> 0 | F38: =IF(Анкета!$E$8="Аренда терминалов", IF(Анкета!$E$7="Стартап",F14*Предпосылки!$F$42/1000,F11*Предпосылки!$F$42/1000), 0) -> 0 | G38: =IF(Анкета!$E$8="Аренда терминалов", IF(Анкета!$E$7="Стартап",G14*Предпосылки!$F$42/1000,G11*Предпосылки!$F$42/1000), 0) -> 0 | H38: =IF(Анкета!$E$8="Аренда терминалов", IF(Анкета!$E$7="Стартап",H14*Предпосылки!$F$42/1000,H11*Предпосылки!$F$42/1000), 0) -> 0 | I38: =IF(Анкета!$E$8="Аренда терминалов", IF(Анкета!$E$7="Стартап",I14*Предпосылки!$F$42/1000,I11*Предпосылки!$F$42/1000), 0) -> 0 | J38: =IF(Анкета!$E$8="Аренда терминалов", IF(Анкета!$E$7="Стартап",J14*Предпосылки!$F$42/1000,J11*Предпосылки!$F$42/1000), 0) -> 0 | K38: =IF(Анкета!$E$8="Аренда терминалов", IF(Анкета!$E$7="Стартап",K14*Предпосылки!$F$42/1000,K11*Предпосылки!$F$42/1000), 0) -> 0 | L38: =IF(Анкета!$E$8="Аренда терминалов", IF(Анкета!$E$7="Стартап",L14*Предпосылки!$F$42/1000,L11*Предпосылки!$F$42/1000), 0) -> 0 | M38: =IF(Анкета!$E$8="Аренда терминалов", IF(Анкета!$E$7="Стартап",M14*Предпосылки!$F$42/1000,M11*Предпосылки!$F$42/1000), 0) -> 0 | N38: =IF(Анкета!$E$8="Аренда терминалов", IF(Анкета!$E$7="Стартап",N14*Предпосылки!$F$42/1000,N11*Предпосылки!$F$42/1000), 0) -> 0 | O38: =IF(Анкета!$E$8="Аренда терминалов", IF(Анкета!$E$7="Стартап",O14*Предпосылки!$F$42/1000,O11*Предпосылки!$F$42/1000), 0) -> 0 | P38: =IF(Анкета!$E$8="Аренда терминалов", IF(Анкета!$E$7="Стартап",P14*Предпосылки!$F$42/1000,P11*Предпосылки!$F$42/1000), 0) -> 0 | Q38: =IF(Анкета!$E$8="Аренда терминалов", IF(Анкета!$E$7="Стартап",Q14*Предпосылки!$F$42/1000,Q11*Предпосылки!$F$42/1000), 0) -> 0 | R38: =IF(Анкета!$E$8="Аренда терминалов", IF(Анкета!$E$7="Стартап",R14*Предпосылки!$F$42/1000,R11*Предпосылки!$F$42/1000), 0) -> 0 | S38: =IF(Анкета!$E$8="Аренда терминалов", IF(Анкета!$E$7="Стартап",S14*Предпосылки!$F$42/1000,S11*Предпосылки!$F$42/1000), 0) -> 0 | T38: =IF(Анкета!$E$8="Аренда терминалов", IF(Анкета!$E$7="Стартап",T14*Предпосылки!$F$42/1000,T11*Предпосылки!$F$42/1000), 0) -> 0 | U38: =IF(Анкета!$E$8="Аренда терминалов", IF(Анкета!$E$7="Стартап",U14*Предпосылки!$F$42/1000,U11*Предпосылки!$F$42/1000), 0) -> 0 | V38: =IF(Анкета!$E$8="Аренда терминалов", IF(Анкета!$E$7="Стартап",V14*Предпосылки!$F$42/1000,V11*Предпосылки!$F$42/1000), 0) -> 0 | W38: =IF(Анкета!$E$8="Аренда терминалов", IF(Анкета!$E$7="Стартап",W14*Предпосылки!$F$42/1000,W11*Предпосылки!$F$42/1000), 0) -> 0 | X38: =IF(Анкета!$E$8="Аренда терминалов", IF(Анкета!$E$7="Стартап",X14*Предпосылки!$F$42/1000,X11*Предпосылки!$F$42/1000), 0) -> 0 | Y38: =IF(Анкета!$E$8="Аренда терминалов", IF(Анкета!$E$7="Стартап",Y14*Предпосылки!$F$42/1000,Y11*Предпосылки!$F$42/1000), 0) -> 0 | Z38: =IF(Анкета!$E$8="Аренда терминалов", IF(Анкета!$E$7="Стартап",Z14*Предпосылки!$F$42/1000,Z11*Предпосылки!$F$42/1000), 0) -> 0 | AA38: =IF(Анкета!$E$8="Аренда терминалов", IF(Анкета!$E$7="Стартап",AA14*Предпосылки!$F$42/1000,AA11*Предпосылки!$F$42/1000), 0) -> 0 | AB38: =IF(Анкета!$E$8="Аренда терминалов", IF(Анкета!$E$7="Стартап",AB14*Предпосылки!$F$42/1000,AB11*Предпосылки!$F$42/1000), 0) -> 0 | AC38: =IF(Анкета!$E$8="Аренда терминалов", IF(Анкета!$E$7="Стартап",AC14*Предпосылки!$F$42/1000,AC11*Предпосылки!$F$42/1000), 0) -> 0 | AD38: =IF(Анкета!$E$8="Аренда терминалов", IF(Анкета!$E$7="Стартап",AD14*Предпосылки!$F$42/1000,AD11*Предпосылки!$F$42/1000), 0) -> 0 | AE38: =IF(Анкета!$E$8="Аренда терминалов", IF(Анкета!$E$7="Стартап",AE14*Предпосылки!$F$42/1000,AE11*Предпосылки!$F$42/1000), 0) -> 0 | AF38: =IF(Анкета!$E$8="Аренда терминалов", IF(Анкета!$E$7="Стартап",AF14*Предпосылки!$F$42/1000,AF11*Предпосылки!$F$42/1000), 0) -> 0 | AG38: =IF(Анкета!$E$8="Аренда терминалов", IF(Анкета!$E$7="Стартап",AG14*Предпосылки!$F$42/1000,AG11*Предпосылки!$F$42/1000), 0) -> 0 | AH38: =IF(Анкета!$E$8="Аренда терминалов", IF(Анкета!$E$7="Стартап",AH14*Предпосылки!$F$42/1000,AH11*Предпосылки!$F$42/1000), 0) -> 0 | AI38: =IF(Анкета!$E$8="Аренда терминалов", IF(Анкета!$E$7="Стартап",AI14*Предпосылки!$F$42/1000,AI11*Предпосылки!$F$42/1000), 0) -> 0 | AJ38: =IF(Анкета!$E$8="Аренда терминалов", IF(Анкета!$E$7="Стартап",AJ14*Предпосылки!$F$42/1000,AJ11*Предпосылки!$F$42/1000), 0) -> 0 | AK38: =IF(Анкета!$E$8="Аренда терминалов", IF(Анкета!$E$7="Стартап",AK14*Предпосылки!$F$42/1000,AK11*Предпосылки!$F$42/1000), 0) -> 0 | AL38: =IF(Анкета!$E$8="Аренда терминалов", IF(Анкета!$E$7="Стартап",AL14*Предпосылки!$F$42/1000,AL11*Предпосылки!$F$42/1000), 0) -> 0 | AM38: =IF(Анкета!$E$8="Аренда терминалов", IF(Анкета!$E$7="Стартап",AM14*Предпосылки!$F$42/1000,AM11*Предпосылки!$F$42/1000), 0) -> 0
B39: - расходы на разметку блюд | C39: тыс. руб. | D39: =IF(Анкета!$E$23="7 календарных дней",'Технический лист'!$C$73/1000,IF(Анкета!$E$23="14 календарных дней",'Технический лист'!$C$74/1000,IF(Анкета!$E$23="21 календарных дней",'Технический лист'!$C$75/1000,IF(Анкета!$E$23="30 календарных дней",'Технический лист'!$C$76/1000,IF(Анкета!$E$23="более 30 календарных дней",'Технический лист'!$C$77/1000, IF(Анкета!$E$23=100,'Технический лист'!$C$82/1000, IF(Анкета!$E$23=200,'Технический лист'!$C$83/1000, IF(Анкета!$E$23=300,'Технический лист'!$C$84/1000, IF(Анкета!$E$23=400,'Технический лист'!$C$85/1000, IF(Анкета!$E$23=500,'Технический лист'!$C$86/1000, IF(Анкета!$E$23=1000,'Технический лист'!$C$87/1000, IF(Анкета!$E$23=1500,'Технический лист'!$C$88/1000, IF(Анкета!$E$23=2000,'Технический лист'!$C$89/1000))))))))))))) -> 100
B40: CAPEX | C40: тыс. руб. | D40: =SUM(D41:D43) -> 500 | E40: =SUM(E41:E43) -> 500 | F40: 0 | G40: 0 | H40: 0 | I40: 0 | J40: 0 | K40: 0 | L40: 0 | M40: 0 | N40: 0 | O40: 0 | P40: 0 | Q40: 0 | R40: 0 | S40: 0 | T40: 0 | U40: 0 | V40: 0 | W40: 0 | X40: 0 | Y40: 0 | Z40: 0 | AA40: 0 | AB40: 0 | AC40: 0 | AD40: 0 | AE40: 0 | AF40: 0 | AG40: 0 | AH40: 0 | AI40: 0 | AJ40: 0 | AK40: 0 | AL40: 0 | AM40: 0
B41: - покупка терминалов | C41: тыс. руб. | D41: =IF(Анкета!$E$8="Покупка терминалов", IF(Анкета!$E$7="Стартап",Предпосылки!$F$45*D14/1000,IF(OR(D11>C11,D11>D7),Предпосылки!$F$45*D11/1000,0)+IF(AND(D12=0,C12>0),Предпосылки!$F$46/1000,0)), 0) -> 500 | E41: =IF(Анкета!$E$8="Покупка терминалов", IF(Анкета!$E$7="Стартап",Предпосылки!$F$45*(E14-D14)/1000,IF(E11>D11,Предпосылки!$F$45*(E11-D11)/1000,0)+IF(AND(E12=0,D12>0),Предпосылки!$F$46/1000,0)),0) -> 500 | F41: =IF(Анкета!$E$8="Покупка терминалов", IF(Анкета!$E$7="Стартап",Предпосылки!$F$45*(F14-E14)/1000,IF(F11>E11,Предпосылки!$F$45*(F11-E11)/1000,0)+IF(AND(F12=0,E12>0),Предпосылки!$F$46/1000,0)),0) -> 0 | G41: =IF(Анкета!$E$8="Покупка терминалов", IF(Анкета!$E$7="Стартап",Предпосылки!$F$45*(G14-F14)/1000,IF(G11>F11,Предпосылки!$F$45*(G11-F11)/1000,0)+IF(AND(G12=0,F12>0),Предпосылки!$F$46/1000,0)),0) -> 0 | H41: =IF(Анкета!$E$8="Покупка терминалов", IF(Анкета!$E$7="Стартап",Предпосылки!$F$45*(H14-G14)/1000,IF(H11>G11,Предпосылки!$F$45*(H11-G11)/1000,0)+IF(AND(H12=0,G12>0),Предпосылки!$F$46/1000,0)),0) -> 0 | I41: =IF(Анкета!$E$8="Покупка терминалов", IF(Анкета!$E$7="Стартап",Предпосылки!$F$45*(I14-H14)/1000,IF(I11>H11,Предпосылки!$F$45*(I11-H11)/1000,0)+IF(AND(I12=0,H12>0),Предпосылки!$F$46/1000,0)),0) -> 0 | J41: =IF(Анкета!$E$8="Покупка терминалов", IF(Анкета!$E$7="Стартап",Предпосылки!$F$45*(J14-I14)/1000,IF(J11>I11,Предпосылки!$F$45*(J11-I11)/1000,0)+IF(AND(J12=0,I12>0),Предпосылки!$F$46/1000,0)),0) -> 0 | K41: =IF(Анкета!$E$8="Покупка терминалов", IF(Анкета!$E$7="Стартап",Предпосылки!$F$45*(K14-J14)/1000,IF(K11>J11,Предпосылки!$F$45*(K11-J11)/1000,0)+IF(AND(K12=0,J12>0),Предпосылки!$F$46/1000,0)),0) -> 0 | L41: =IF(Анкета!$E$8="Покупка терминалов", IF(Анкета!$E$7="Стартап",Предпосылки!$F$45*(L14-K14)/1000,IF(L11>K11,Предпосылки!$F$45*(L11-K11)/1000,0)+IF(AND(L12=0,K12>0),Предпосылки!$F$46/1000,0)),0) -> 0 | M41: =IF(Анкета!$E$8="Покупка терминалов", IF(Анкета!$E$7="Стартап",Предпосылки!$F$45*(M14-L14)/1000,IF(M11>L11,Предпосылки!$F$45*(M11-L11)/1000,0)+IF(AND(M12=0,L12>0),Предпосылки!$F$46/1000,0)),0) -> 0 | N41: =IF(Анкета!$E$8="Покупка терминалов", IF(Анкета!$E$7="Стартап",Предпосылки!$F$45*(N14-M14)/1000,IF(N11>M11,Предпосылки!$F$45*(N11-M11)/1000,0)+IF(AND(N12=0,M12>0),Предпосылки!$F$46/1000,0)),0) -> 0 | O41: =IF(Анкета!$E$8="Покупка терминалов", IF(Анкета!$E$7="Стартап",Предпосылки!$F$45*(O14-N14)/1000,IF(O11>N11,Предпосылки!$F$45*(O11-N11)/1000,0)+IF(AND(O12=0,N12>0),Предпосылки!$F$46/1000,0)),0) -> 0 | P41: =IF(Анкета!$E$8="Покупка терминалов", IF(Анкета!$E$7="Стартап",Предпосылки!$F$45*(P14-O14)/1000,IF(P11>O11,Предпосылки!$F$45*(P11-O11)/1000,0)+IF(AND(P12=0,O12>0),Предпосылки!$F$46/1000,0)),0) -> 0 | Q41: =IF(Анкета!$E$8="Покупка терминалов", IF(Анкета!$E$7="Стартап",Предпосылки!$F$45*(Q14-P14)/1000,IF(Q11>P11,Предпосылки!$F$45*(Q11-P11)/1000,0)+IF(AND(Q12=0,P12>0),Предпосылки!$F$46/1000,0)),0) -> 0 | R41: =IF(Анкета!$E$8="Покупка терминалов", IF(Анкета!$E$7="Стартап",Предпосылки!$F$45*(R14-Q14)/1000,IF(R11>Q11,Предпосылки!$F$45*(R11-Q11)/1000,0)+IF(AND(R12=0,Q12>0),Предпосылки!$F$46/1000,0)),0) -> 0 | S41: =IF(Анкета!$E$8="Покупка терминалов", IF(Анкета!$E$7="Стартап",Предпосылки!$F$45*(S14-R14)/1000,IF(S11>R11,Предпосылки!$F$45*(S11-R11)/1000,0)+IF(AND(S12=0,R12>0),Предпосылки!$F$46/1000,0)),0) -> 0 | T41: =IF(Анкета!$E$8="Покупка терминалов", IF(Анкета!$E$7="Стартап",Предпосылки!$F$45*(T14-S14)/1000,IF(T11>S11,Предпосылки!$F$45*(T11-S11)/1000,0)+IF(AND(T12=0,S12>0),Предпосылки!$F$46/1000,0)),0) -> 0 | U41: =IF(Анкета!$E$8="Покупка терминалов", IF(Анкета!$E$7="Стартап",Предпосылки!$F$45*(U14-T14)/1000,IF(U11>T11,Предпосылки!$F$45*(U11-T11)/1000,0)+IF(AND(U12=0,T12>0),Предпосылки!$F$46/1000,0)),0) -> 0 | V41: =IF(Анкета!$E$8="Покупка терминалов", IF(Анкета!$E$7="Стартап",Предпосылки!$F$45*(V14-U14)/1000,IF(V11>U11,Предпосылки!$F$45*(V11-U11)/1000,0)+IF(AND(V12=0,U12>0),Предпосылки!$F$46/1000,0)),0) -> 0 | W41: =IF(Анкета!$E$8="Покупка терминалов", IF(Анкета!$E$7="Стартап",Предпосылки!$F$45*(W14-V14)/1000,IF(W11>V11,Предпосылки!$F$45*(W11-V11)/1000,0)+IF(AND(W12=0,V12>0),Предпосылки!$F$46/1000,0)),0) -> 0 | X41: =IF(Анкета!$E$8="Покупка терминалов", IF(Анкета!$E$7="Стартап",Предпосылки!$F$45*(X14-W14)/1000,IF(X11>W11,Предпосылки!$F$45*(X11-W11)/1000,0)+IF(AND(X12=0,W12>0),Предпосылки!$F$46/1000,0)),0) -> 0 | Y41: =IF(Анкета!$E$8="Покупка терминалов", IF(Анкета!$E$7="Стартап",Предпосылки!$F$45*(Y14-X14)/1000,IF(Y11>X11,Предпосылки!$F$45*(Y11-X11)/1000,0)+IF(AND(Y12=0,X12>0),Предпосылки!$F$46/1000,0)),0) -> 0 | Z41: =IF(Анкета!$E$8="Покупка терминалов", IF(Анкета!$E$7="Стартап",Предпосылки!$F$45*(Z14-Y14)/1000,IF(Z11>Y11,Предпосылки!$F$45*(Z11-Y11)/1000,0)+IF(AND(Z12=0,Y12>0),Предпосылки!$F$46/1000,0)),0) -> 0 | AA41: =IF(Анкета!$E$8="Покупка терминалов", IF(Анкета!$E$7="Стартап",Предпосылки!$F$45*(AA14-Z14)/1000,IF(AA11>Z11,Предпосылки!$F$45*(AA11-Z11)/1000,0)+IF(AND(AA12=0,Z12>0),Предпосылки!$F$46/1000,0)),0) -> 0 | AB41: =IF(Анкета!$E$8="Покупка терминалов", IF(Анкета!$E$7="Стартап",Предпосылки!$F$45*(AB14-AA14)/1000,IF(AB11>AA11,Предпосылки!$F$45*(AB11-AA11)/1000,0)+IF(AND(AB12=0,AA12>0),Предпосылки!$F$46/1000,0)),0) -> 0 | AC41: =IF(Анкета!$E$8="Покупка терминалов", IF(Анкета!$E$7="Стартап",Предпосылки!$F$45*(AC14-AB14)/1000,IF(AC11>AB11,Предпосылки!$F$45*(AC11-AB11)/1000,0)+IF(AND(AC12=0,AB12>0),Предпосылки!$F$46/1000,0)),0) -> 0 | AD41: =IF(Анкета!$E$8="Покупка терминалов", IF(Анкета!$E$7="Стартап",Предпосылки!$F$45*(AD14-AC14)/1000,IF(AD11>AC11,Предпосылки!$F$45*(AD11-AC11)/1000,0)+IF(AND(AD12=0,AC12>0),Предпосылки!$F$46/1000,0)),0) -> 0 | AE41: =IF(Анкета!$E$8="Покупка терминалов", IF(Анкета!$E$7="Стартап",Предпосылки!$F$45*(AE14-AD14)/1000,IF(AE11>AD11,Предпосылки!$F$45*(AE11-AD11)/1000,0)+IF(AND(AE12=0,AD12>0),Предпосылки!$F$46/1000,0)),0) -> 0 | AF41: =IF(Анкета!$E$8="Покупка терминалов", IF(Анкета!$E$7="Стартап",Предпосылки!$F$45*(AF14-AE14)/1000,IF(AF11>AE11,Предпосылки!$F$45*(AF11-AE11)/1000,0)+IF(AND(AF12=0,AE12>0),Предпосылки!$F$46/1000,0)),0) -> 0 | AG41: =IF(Анкета!$E$8="Покупка терминалов", IF(Анкета!$E$7="Стартап",Предпосылки!$F$45*(AG14-AF14)/1000,IF(AG11>AF11,Предпосылки!$F$45*(AG11-AF11)/1000,0)+IF(AND(AG12=0,AF12>0),Предпосылки!$F$46/1000,0)),0) -> 0 | AH41: =IF(Анкета!$E$8="Покупка терминалов", IF(Анкета!$E$7="Стартап",Предпосылки!$F$45*(AH14-AG14)/1000,IF(AH11>AG11,Предпосылки!$F$45*(AH11-AG11)/1000,0)+IF(AND(AH12=0,AG12>0),Предпосылки!$F$46/1000,0)),0) -> 0 | AI41: =IF(Анкета!$E$8="Покупка терминалов", IF(Анкета!$E$7="Стартап",Предпосылки!$F$45*(AI14-AH14)/1000,IF(AI11>AH11,Предпосылки!$F$45*(AI11-AH11)/1000,0)+IF(AND(AI12=0,AH12>0),Предпосылки!$F$46/1000,0)),0) -> 0 | AJ41: =IF(Анкета!$E$8="Покупка терминалов", IF(Анкета!$E$7="Стартап",Предпосылки!$F$45*(AJ14-AI14)/1000,IF(AJ11>AI11,Предпосылки!$F$45*(AJ11-AI11)/1000,0)+IF(AND(AJ12=0,AI12>0),Предпосылки!$F$46/1000,0)),0) -> 0 | AK41: =IF(Анкета!$E$8="Покупка терминалов", IF(Анкета!$E$7="Стартап",Предпосылки!$F$45*(AK14-AJ14)/1000,IF(AK11>AJ11,Предпосылки!$F$45*(AK11-AJ11)/1000,0)+IF(AND(AK12=0,AJ12>0),Предпосылки!$F$46/1000,0)),0) -> 0 | AL41: =IF(Анкета!$E$8="Покупка терминалов", IF(Анкета!$E$7="Стартап",Предпосылки!$F$45*(AL14-AK14)/1000,IF(AL11>AK11,Предпосылки!$F$45*(AL11-AK11)/1000,0)+IF(AND(AL12=0,AK12>0),Предпосылки!$F$46/1000,0)),0) -> 0 | AM41: =IF(Анкета!$E$8="Покупка терминалов", IF(Анкета!$E$7="Стартап",Предпосылки!$F$45*(AM14-AL14)/1000,IF(AM11>AL11,Предпосылки!$F$45*(AM11-AL11)/1000,0)+IF(AND(AM12=0,AL12>0),Предпосылки!$F$46/1000,0)),0) -> 0
B42: - расходы на покупку униформы | C42: тыс. руб. | D42: =IF(Анкета!$E$7="Стартап",$D$15*Предпосылки!F31,0)/1000 -> 0
B43: - покупка кассовых аппаратов | C43: тыс. руб. | D43: =IF(Анкета!$E$7="Стартап", $D$15*Предпосылки!$F$32, 0)/1000 -> 0
B44: РАСХОДЫ всего | C44: тыс. руб. | D44: =D35+D40 -> 732.208 | E44: =E35+E40 -> 588.604 | F44: 88.604 | G44: 88.604 | H44: 88.604 | I44: 88.604 | J44: 88.604 | K44: 88.604 | L44: 88.604 | M44: 88.604 | N44: 88.604 | O44: 88.604 | P44: 88.604 | Q44: 88.604 | R44: 88.604 | S44: 88.604 | T44: 88.604 | U44: 88.604 | V44: 88.604 | W44: 88.604 | X44: 88.604 | Y44: 88.604 | Z44: 88.604 | AA44: 88.604 | AB44: 88.604 | AC44: 88.604 | AD44: 88.604 | AE44: 88.604 | AF44: 88.604 | AG44: 88.604 | AH44: 88.604 | AI44: 88.604 | AJ44: 88.604 | AK44: 88.604 | AL44: 88.604 | AM44: 88.604
B46: Экономический эффект при покупке или аренде Терминалов
B47: Свободный денежный поток | C47: тыс. руб. | D47: =D44 -> 732.208 | E47: =E44 -> 588.604 | F47: 88.604 | G47: 88.604 | H47: 88.604 | I47: 88.604 | J47: 88.604 | K47: 88.604 | L47: 88.604 | M47: 88.604 | N47: 88.604 | O47: 88.604 | P47: 88.604 | Q47: 88.604 | R47: 88.604 | S47: 88.604 | T47: 88.604 | U47: 88.604 | V47: 88.604 | W47: 88.604 | X47: 88.604 | Y47: 88.604 | Z47: 88.604 | AA47: 88.604 | AB47: 88.604 | AC47: 88.604 | AD47: 88.604 | AE47: 88.604 | AF47: 88.604 | AG47: 88.604 | AH47: 88.604 | AI47: 88.604 | AJ47: 88.604 | AK47: 88.604 | AL47: 88.604 | AM47: 88.604
B48: Свободный денежный поток накопленным итогом | C48: тыс. руб. | D48: =D47 -> 732.208 | E48: =D48+E47 -> 1320.812 | F48: =E48+F47 -> 1409.416 | G48: 1498.02 | H48: 1586.624 | I48: 1675.228 | J48: 1763.832 | K48: 1852.436 | L48: 1941.04 | M48: 2029.644 | N48: 2118.248 | O48: 2206.852 | P48: 2295.456 | Q48: 2384.06 | R48: 2472.664 | S48: 2561.268 | T48: 2649.872 | U48: 2738.476 | V48: 2827.08 | W48: 2915.684 | X48: 3004.288 | Y48: 3092.892 | Z48: 3181.496 | AA48: 3270.1 | AB48: 3358.704 | AC48: 3447.308 | AD48: 3535.912 | AE48: 3624.516 | AF48: 3713.12 | AG48: 3801.724 | AH48: 3890.328 | AI48: 3978.932 | AJ48: 4067.536 | AK48: 4156.14 | AL48: 4244.744 | AM48: 4333.348
B49: Дисконтируемый денежный поток (DCF) | C49: тыс. руб. | D49: =D47/(1+Предпосылки!$F$51)^D1 -> 729.8187633 | E49: =E47/(1+Предпосылки!$F$51)^E1 -> 584.7689699 | F49: =F47/(1+Предпосылки!$F$51)^F1 -> 87.73946736 | G49: =G47/(1+Предпосылки!$F$51)^G1 -> 87.45316844 | H49: =H47/(1+Предпосылки!$F$51)^H1 -> 87.16780373 | I49: =I47/(1+Предпосылки!$F$51)^I1 -> 86.88337019 | J49: =J47/(1+Предпосылки!$F$51)^J1 -> 86.59986477 | K49: =K47/(1+Предпосылки!$F$51)^K1 -> 86.31728444 | L49: =L47/(1+Предпосылки!$F$51)^L1 -> 86.03562619 | M49: =M47/(1+Предпосылки!$F$51)^M1 -> 85.754887 | N49: =N47/(1+Предпосылки!$F$51)^N1 -> 85.47506388 | O49: =O47/(1+Предпосылки!$F$51)^O1 -> 85.19615385 | P49: =P47/(1+Предпосылки!$F$51)^P1 -> 84.91815391 | Q49: =Q47/(1+Предпосылки!$F$51)^Q1 -> 84.6410611 | R49: =R47/(1+Предпосылки!$F$51)^R1 -> 84.36487246 | S49: =S47/(1+Предпосылки!$F$51)^S1 -> 84.08958504 | T49: =T47/(1+Предпосылки!$F$51)^T1 -> 83.8151959 | U49: =U47/(1+Предпосылки!$F$51)^U1 -> 83.5417021 | V49: =V47/(1+Предпосылки!$F$51)^V1 -> 83.26910074 | W49: =W47/(1+Предпосылки!$F$51)^W1 -> 82.99738888 | X49: =X47/(1+Предпосылки!$F$51)^X1 -> 82.72656364 | Y49: =Y47/(1+Предпосылки!$F$51)^Y1 -> 82.45662212 | Z49: =Z47/(1+Предпосылки!$F$51)^Z1 -> 82.18756143 | AA49: =AA47/(1+Предпосылки!$F$51)^AA1 -> 81.9193787 | AB49: =AB47/(1+Предпосылки!$F$51)^AB1 -> 81.65207106 | AC49: =AC47/(1+Предпосылки!$F$51)^AC1 -> 81.38563567 | AD49: =AD47/(1+Предпосылки!$F$51)^AD1 -> 81.12006967 | AE49: =AE47/(1+Предпосылки!$F$51)^AE1 -> 80.85537023 | AF49: =AF47/(1+Предпосылки!$F$51)^AF1 -> 80.59153452 | AG49: =AG47/(1+Предпосылки!$F$51)^AG1 -> 80.32855972 | AH49: =AH47/(1+Предпосылки!$F$51)^AH1 -> 80.06644302 | AI49: =AI47/(1+Предпосылки!$F$51)^AI1 -> 79.80518162 | AJ49: =AJ47/(1+Предпосылки!$F$51)^AJ1 -> 79.54477273 | AK49: =AK47/(1+Предпосылки!$F$51)^AK1 -> 79.28521357 | AL49: =AL47/(1+Предпосылки!$F$51)^AL1 -> 79.02650137 | AM49: =AM47/(1+Предпосылки!$F$51)^AM1 -> 78.76863336
B50: Накопленный DCF по расходам | C50: тыс. руб. | D50: =SUM(D49:AM49) -> 4142.567596
B51: Окупаемость капитальных вложений | C51: мес. | D51: =D57 -> 13
C54: 1 | D54: =D31*D1 -> 274.9120096 | E54: =E31*E1 -> 349.3330054 | F54: 522.2896676 | G54: 694.1138752 | H54: 864.8111773 | I54: 1034.387099 | J54: 1202.84714 | K54: 1370.196778 | L54: 1536.441465 | M54: 1701.586632 | N54: 1865.637683 | O54: 2028.6 | P54: 2190.478942 | Q54: 2351.279844 | R54: 2511.008017 | S54: 2669.668751 | T54: 2827.26731 | U54: 2983.808938 | V54: 3139.298854 | W54: 3293.742254 | X54: 3447.144313 | Y54: 3599.510183 | Z54: 3750.844992 | AA54: 3901.153846 | AB54: 4050.441831 | AC54: 4198.714007 | AD54: 4345.975414 | AE54: 4492.231071 | AF54: 4637.485973 | AG54: 4781.745093 | AH54: 4925.013384 | AI54: 5067.295776 | AJ54: 5208.597177 | AK54: 5348.922475 | AL54: 5488.276535 | AM54: 5626.664201
C55: 2 | D55: =D49 -> 729.8187633 | E55: =E49+D55 -> 1314.587733 | F55: =F49+E55 -> 1402.327201 | G55: 1489.780369 | H55: 1576.948173 | I55: 1663.831543 | J55: 1750.431408 | K55: 1836.748692 | L55: 1922.784318 | M55: 2008.539205 | N55: 2094.014269 | O55: 2179.210423 | P55: 2264.128577 | Q55: 2348.769638 | R55: 2433.134511 | S55: 2517.224096 | T55: 2601.039291 | U55: 2684.580994 | V55: 2767.850094 | W55: 2850.847483 | X55: 2933.574047 | Y55: 3016.030669 | Z55: 3098.21823 | AA55: 3180.137609 | AB55: 3261.78968 | AC55: 3343.175316 | AD55: 3424.295385 | AE55: 3505.150756 | AF55: 3585.74229 | AG55: 3666.07085 | AH55: 3746.137293 | AI55: 3825.942475 | AJ55: 3905.487247 | AK55: 3984.772461 | AL55: 4063.798962 | AM55: 4142.567596
D56: =D54-D55 -> -454.9067537 | E56: =E54-E55 -> -965.2547279 | F56: -880.037533 | G56: -795.6664938 | H56: -712.1369955 | I56: -629.4444444 | J56: -547.584268 | K56: -466.5519144 | L56: -386.3428529 | M56: -306.9525734 | N56: -228.3765864 | O56: -150.6104231 | P56: -73.64963502 | Q56: 2.510205667 | R56: 77.87350663 | S56: 152.4446553 | T56: 226.2280188 | U56: 299.2279445 | V56: 371.4487594 | W56: 442.894771 | X56: 513.5702666 | Y56: 583.479514 | Z56: 652.6267613 | AA56: 721.0162371 | AB56: 788.6521504 | AC56: 855.5386909 | AD56: 921.6800288 | AE56: 987.0803154 | AF56: 1051.743683 | AG56: 1115.674243 | AH56: 1178.876091 | AI56: 1241.353301 | AJ56: 1303.10993 | AK56: 1364.150014 | AL56: 1424.477572 | AM56: 1484.096606
D57: =IF(SUM(E57:AM57)=0, "Не окупается на горизонте прогноза",SUM(E57:AM57) -1) -> 13 | E57: =IF(E$1>0,IF(E56>0,E$1,0),0) -> 0 | F57: =IF(F$1>0,IF(AND(F56>0,E56<=0),F$1,0),0) -> 0 | G57: =IF(G$1>0,IF(AND(G56>0,F56<=0),G$1,0),0) -> 0 | H57: 0 | I57: 0 | J57: 0 | K57: 0 | L57: 0 | M57: 0 | N57: 0 | O57: 0 | P57: 0 | Q57: 14 | R57: 0 | S57: 0 | T57: 0 | U57: 0 | V57: 0 | W57: 0 | X57: 0 | Y57: 0 | Z57: 0 | AA57: 0 | AB57: 0 | AC57: 0 | AD57: 0 | AE57: 0 | AF57: 0 | AG57: 0 | AH57: 0 | AI57: 0 | AJ57: 0 | AK57: 0 | AL57: 0 | AM57: 0

Sheet Предпосылки
C2: ПРЕДПОСЫЛКИ
C4: Показатель | E4: ед. изм. | F4: сумма | G4: источник
B6: 1 | C6: Без терминала (информация о клиенте на сегодняшний день)
C8: Количество кассовых аппаратов
C9: Количество кассовых аппаратов в день, работающих одновременно | E9: ед. | F9: =Анкета!E31 -> 3 | G9: Данные клиента
C11: Среднемесячная выручка | E11: руб. в мес. | F11: =F12*F13*F14*F9 -> 3780000 | G11: Расчет / Данные клиента
D12: Средний чек | E12: руб. | F12: =Анкета!E36 -> 200 | G12: Данные клиента
D13: Среднее кол-во покупателей | E13: чел. в день | F13: =Анкета!E37 -> 300 | G13: Данные клиента
D14: Количество рабочих дней | E14: дн. в месяц | F14: =Анкета!E38 -> 21 | G14: Данные клиента
C15: OPEX, в месяц | F15: =F16 -> 58604
C16: Расходы на одного кассира | E16: руб. в мес. | F16: =F17+F21+F22+F27+F28 -> 58604 | G16: Расчет
C17: Ежемесячный ФОТ кассира (с учетом страховых взносов) | E17: руб. | F17: =F18+F19 -> 54684 | G17: Расчет
D18: Месячная заработная плата кассира | E18: руб. | F18: =Анкета!E29 -> 42000 | G18: Данные клиента
D19: Объем взносов в социальные фонды | E19: руб. | F19: =F18*F20 -> 12684 | G19: Расчет
D20: Общий тариф страховых взносов | E20: % | F20: 0.302 | G20: Данные НК РФ
C21: ПЦР тесты | E21: руб. | F21: 0 | G21: Расчет
C22: Ежемесячное питание сотрудников | E22: руб. | F22: =F23*F26 -> 2520 | G22: Расчет
D23: Расходы на питание 1-го кассира | E23: руб. в день | F23: =F24*F25 -> 120 | G23: Расчет
D24: Средняя себестоимость 1-го приема пищи для 1-го кассира | E24: руб. | F24: =Анкета!E39 -> 60 | G24: Данные клиента
D25: Кол-во приемов пищи 1-м кассиром | E25: раз в день | F25: =Анкета!E40 -> 2 | G25: Данные клиента
D26: Количество рабочих дней одного кассира | E26: дн. в месяц | F26: =Анкета!E38 -> 21 | G26: Данные клиента
C27: Медицинская книжка | E27: руб. | F27: 400 | G27: Расчет
C28: Среднемесячные расходы на подбор кассиров | E28: руб. | F28: =Анкета!E35 -> 1000 | G28: Данные клиента
C30: CAPEX | F30: =SUM(F31:F32) -> 119500
C31: Униформа на 1-го кассира | E31: руб. | F31: =Анкета!E46 -> 1500 | G31: Данные клиента
C32: Стоимость оборудования для 1-ой кассовой точки | E32: руб. | F32: =SUM(F33:F36) -> 118000 | G32: Расчет
D33: Кассовый терминал | E33: руб. | F33: =Анкета!E42 -> 65000 | G33: Данные клиента
D34: Фискальный принтер | E34: руб. | F34: =Анкета!E43 -> 32000 | G34: Данные клиента
D35: POS-система | E35: руб. | F35: =Анкета!E44 -> 20000 | G35: Данные клиента
D36: Стол и стул | E36: руб. | F36: =Анкета!E45 -> 1000 | G36: Данные клиента
B38: 2 | C38: Изменения после покупки терминала
C40: OPEX, в месяц | F40: =F41+F42 -> 45000
C41: Расходы на ТО и поддержку | E41: руб. | F41: ='Данные СМС'!C24 -> 15000 | G41: Данные SMS
C42: Расходы на аренду терминала | E42: руб. | F42: ='Данные СМС'!C22 -> 30000 | G42: Данные SMS
C44: CAPEX | F44: =SUM(F45:F46) -> 500000
C45: Стоимость покупки терминала | E45: руб. | F45: ='Данные СМС'!C21 -> 500000 | G45: Данные SMS
C46: Стоимость Разметки | E46: руб. | F46: ='Данные СМС'!C23 -> 35000-700000 | G46: Данные SMS
B48: 3 | C48: Дополнительные данные для прогноза
C50: Годовая ставка дисконтирования, % | E50: % | F50: 0.04 | G50: Экспертная оценка
C51: Месячная ставка дисконтирования, % | E51: % | F51: =(F50+1)^(1/12)-1 -> 0.003273739782 | G51: Расчет
C52: Скорость работы терминала | E52: сек. | F52: 15 | G52: Данные SMS
C53: Темп роста выручки (в мес.) | E53: % | F53: =IF(Анкета!E49="н/д", 'Данные СМС'!C26, Анкета!E49) -> 0 | G53: Данные клиента / оценка SMS
C54: Темп роста доли безналичных платежей (в мес.) | E54: % | F54: =IF(Анкета!E51="н/д", 'Данные СМС'!C28,Анкета!E51) -> 0 | G54: Данные клиента / оценка SMS

Sheet Данные СМС
B2: ДАННЫЕ СМС
B4: Таблица верификации | D4: Комментарий
B5: Исходное количество кассовых аппаратов | C5: =Анкета!E31 -> 3
B6: Проверка корректности:
B7: - Сокращение кассовых аппаратов проведено корректно | C7: =IF(-SUM(C15:AL15)>$C$5, "ОШИБКА", "ВЕРНО") -> ВЕРНО
B8: - Сокращение кассовых аппаратов проведено в соответствии с возможностями терминала | C8: =IF(-SUM(C15:AL15)/SUM(C14:AL14)-C10>=Анкета!E34/Предпосылки!F52, "ОШИБКА", "ВЕРНО") -> ВЕРНО
B9: Рекомендуемая норма замены кассовых аппаратов, ед. | C9: =C5-IF(C5=2, 'Технический лист'!E12,IF(C5=3, 'Технический лист'!E19,IF(C5=4,'Технический лист'!E26,IF(C5=5,'Технический лист'!E33,IF(C5=6,'Технический лист'!E40,IF(C5=7,'Технический лист'!E47,IF(C5=8,'Технический лист'!E54,IF(C5=9,'Технический лист'!D61-'Технический лист'!E61,IF(C5=10,'Технический лист'!E68))))))))) -> 2
B10: Возможная погрещность при определении рекомендуемой нормы замены кассовых аппаратов, % | C10: 0.2 | D10: Обсуждаемо
B12: Изменения
B13: Действующая | C13: 1 мес. | D13: 2 мес. | E13: 3 мес. | F13: 4 мес. | G13: 5 мес. | H13: 6 мес. | I13: 7 мес. | J13: 8 мес. | K13: 9 мес. | L13: 10 мес. | M13: 11 мес. | N13: 12 мес. | O13: 13 мес. | P13: 14 мес. | Q13: 15 мес. | R13: 16 мес. | S13: 17 мес. | T13: 18 мес. | U13: 19 мес. | V13: 20 мес. | W13: 21 мес. | X13: 22 мес. | Y13: 23 мес. | Z13: 24 мес. | AA13: 25 мес. | AB13: 26 мес. | AC13: 27 мес. | AD13: 28 мес. | AE13: 29 мес. | AF13: 30 мес. | AG13: 31 мес. | AH13: 32 мес. | AI13: 33 мес. | AJ13: 34 мес. | AK13: 35 мес. | AL13: 36 мес.
B14: Количество терминалов, ед. | C14: =IF($B$13="Действующая", 'Расчетные таблицы'!D7+'Расчетные таблицы'!D11, $C$5-1) -> 1 | D14: =IF($B$13="Действующая", 'Расчетные таблицы'!E11-'Расчетные таблицы'!D11, 0) -> 1 | E14: =IF($B$13="Действующая", 'Расчетные таблицы'!F11-'Расчетные таблицы'!E11, 0) -> 0 | F14: =IF($B$13="Действующая", 'Расчетные таблицы'!G11-'Расчетные таблицы'!F11, 0) -> 0 | G14: =IF($B$13="Действующая", 'Расчетные таблицы'!H11-'Расчетные таблицы'!G11, 0) -> 0 | H14: =IF($B$13="Действующая", 'Расчетные таблицы'!I11-'Расчетные таблицы'!H11, 0) -> 0 | I14: =IF($B$13="Действующая", 'Расчетные таблицы'!J11-'Расчетные таблицы'!I11, 0) -> 0 | J14: =IF($B$13="Действующая", 'Расчетные таблицы'!K11-'Расчетные таблицы'!J11, 0) -> 0 | K14: =IF($B$13="Действующая", 'Расчетные таблицы'!L11-'Расчетные таблицы'!K11, 0) -> 0 | L14: =IF($B$13="Действующая", 'Расчетные таблицы'!M11-'Расчетные таблицы'!L11, 0) -> 0 | M14: =IF($B$13="Действующая", 'Расчетные таблицы'!N11-'Расчетные таблицы'!M11, 0) -> 0 | N14: =IF($B$13="Действующая", 'Расчетные таблицы'!O11-'Расчетные таблицы'!N11, 0) -> 0 | O14: =IF($B$13="Действующая", 'Расчетные таблицы'!P11-'Расчетные таблицы'!O11, 0) -> 0 | P14: =IF($B$13="Действующая", 'Расчетные таблицы'!Q11-'Расчетные таблицы'!P11, 0) -> 0 | Q14: =IF($B$13="Действующая", 'Расчетные таблицы'!R11-'Расчетные таблицы'!Q11, 0) -> 0 | R14: =IF($B$13="Действующая", 'Расчетные таблицы'!S11-'Расчетные таблицы'!R11, 0) -> 0 | S14: =IF($B$13="Действующая", 'Расчетные таблицы'!T11-'Расчетные таблицы'!S11, 0) -> 0 | T14: =IF($B$13="Действующая", 'Расчетные таблицы'!U11-'Расчетные таблицы'!T11, 0) -> 0 | U14: =IF($B$13="Действующая", 'Расчетные таблицы'!V11-'Расчетные таблицы'!U11, 0) -> 0 | V14: =IF($B$13="Действующая", 'Расчетные таблицы'!W11-'Расчетные таблицы'!V11, 0) -> 0 | W14: =IF($B$13="Действующая", 'Расчетные таблицы'!X11-'Расчетные таблицы'!W11, 0) -> 0 | X14: =IF($B$13="Действующая", 'Расчетные таблицы'!Y11-'Расчетные таблицы'!X11, 0) -> 0 | Y14: =IF($B$13="Действующая", 'Расчетные таблицы'!Z11-'Расчетные таблицы'!Y11, 0) -> 0 | Z14: =IF($B$13="Действующая", 'Расчетные таблицы'!AA11-'Расчетные таблицы'!Z11, 0) -> 0 | AA14: =IF($B$13="Действующая", 'Расчетные таблицы'!AB11-'Расчетные таблицы'!AA11, 0) -> 0 | AB14: =IF($B$13="Действующая", 'Расчетные таблицы'!AC11-'Расчетные таблицы'!AB11, 0) -> 0 | AC14: =IF($B$13="Действующая", 'Расчетные таблицы'!AD11-'Расчетные таблицы'!AC11, 0) -> 0 | AD14: =IF($B$13="Действующая", 'Расчетные таблицы'!AE11-'Расчетные таблицы'!AD11, 0) -> 0 | AE14: =IF($B$13="Действующая", 'Расчетные таблицы'!AF11-'Расчетные таблицы'!AE11, 0) -> 0 | AF14: =IF($B$13="Действующая", 'Расчетные таблицы'!AG11-'Расчетные таблицы'!AF11, 0) -> 0 | AG14: =IF($B$13="Действующая", 'Расчетные таблицы'!AH11-'Расчетные таблицы'!AG11, 0) -> 0 | AH14: =IF($B$13="Действующая", 'Расчетные таблицы'!AI11-'Расчетные таблицы'!AH11, 0) -> 0 | AI14: =IF($B$13="Действующая", 'Расчетные таблицы'!AJ11-'Расчетные таблицы'!AI11, 0) -> 0 | AJ14: =IF($B$13="Действующая", 'Расчетные таблицы'!AK11-'Расчетные таблицы'!AJ11, 0) -> 0 | AK14: =IF($B$13="Действующая", 'Расчетные таблицы'!AL11-'Расчетные таблицы'!AK11, 0) -> 0 | AL14: =IF($B$13="Действующая", 'Расчетные таблицы'!AM11-'Расчетные таблицы'!AL11, 0) -> 0
B15: Количество кассовых аппаратов, ед. | C15: =IF($B$13="Действующая", 'Расчетные таблицы'!D12-'Расчетные таблицы'!D8, -($C$5-1)) -> -1 | D15: =IF($B$13="Действующая", 'Расчетные таблицы'!E12-'Расчетные таблицы'!D12, 0) -> -1 | E15: =IF($B$13="Действующая", 'Расчетные таблицы'!F12-'Расчетные таблицы'!E12, 0) -> 0 | F15: =IF($B$13="Действующая", 'Расчетные таблицы'!G12-'Расчетные таблицы'!F12, 0) -> 0 | G15: =IF($B$13="Действующая", 'Расчетные таблицы'!H12-'Расчетные таблицы'!G12, 0) -> 0 | H15: =IF($B$13="Действующая", 'Расчетные таблицы'!I12-'Расчетные таблицы'!H12, 0) -> 0 | I15: =IF($B$13="Действующая", 'Расчетные таблицы'!J12-'Расчетные таблицы'!I12, 0) -> 0 | J15: =IF($B$13="Действующая", 'Расчетные таблицы'!K12-'Расчетные таблицы'!J12, 0) -> 0 | K15: =IF($B$13="Действующая", 'Расчетные таблицы'!L12-'Расчетные таблицы'!K12, 0) -> 0 | L15: =IF($B$13="Действующая", 'Расчетные таблицы'!M12-'Расчетные таблицы'!L12, 0) -> 0 | M15: =IF($B$13="Действующая", 'Расчетные таблицы'!N12-'Расчетные таблицы'!M12, 0) -> 0 | N15: =IF($B$13="Действующая", 'Расчетные таблицы'!O12-'Расчетные таблицы'!N12, 0) -> 0 | O15: =IF($B$13="Действующая", 'Расчетные таблицы'!P12-'Расчетные таблицы'!O12, 0) -> 0 | P15: =IF($B$13="Действующая", 'Расчетные таблицы'!Q12-'Расчетные таблицы'!P12, 0) -> 0 | Q15: =IF($B$13="Действующая", 'Расчетные таблицы'!R12-'Расчетные таблицы'!Q12, 0) -> 0 | R15: =IF($B$13="Действующая", 'Расчетные таблицы'!S12-'Расчетные таблицы'!R12, 0) -> 0 | S15: =IF($B$13="Действующая", 'Расчетные таблицы'!T12-'Расчетные таблицы'!S12, 0) -> 0 | T15: =IF($B$13="Действующая", 'Расчетные таблицы'!U12-'Расчетные таблицы'!T12, 0) -> 0 | U15: =IF($B$13="Действующая", 'Расчетные таблицы'!V12-'Расчетные таблицы'!U12, 0) -> 0 | V15: =IF($B$13="Действующая", 'Расчетные таблицы'!W12-'Расчетные таблицы'!V12, 0) -> 0 | W15: =IF($B$13="Действующая", 'Расчетные таблицы'!X12-'Расчетные таблицы'!W12, 0) -> 0 | X15: =IF($B$13="Действующая", 'Расчетные таблицы'!Y12-'Расчетные таблицы'!X12, 0) -> 0 | Y15: =IF($B$13="Действующая", 'Расчетные таблицы'!Z12-'Расчетные таблицы'!Y12, 0) -> 0 | Z15: =IF($B$13="Действующая", 'Расчетные таблицы'!AA12-'Расчетные таблицы'!Z12, 0) -> 0 | AA15: =IF($B$13="Действующая", 'Расчетные таблицы'!AB12-'Расчетные таблицы'!AA12, 0) -> 0 | AB15: =IF($B$13="Действующая", 'Расчетные таблицы'!AC12-'Расчетные таблицы'!AB12, 0) -> 0 | AC15: =IF($B$13="Действующая", 'Расчетные таблицы'!AD12-'Расчетные таблицы'!AC12, 0) -> 0 | AD15: =IF($B$13="Действующая", 'Расчетные таблицы'!AE12-'Расчетные таблицы'!AD12, 0) -> 0 | AE15: =IF($B$13="Действующая", 'Расчетные таблицы'!AF12-'Расчетные таблицы'!AE12, 0) -> 0 | AF15: =IF($B$13="Действующая", 'Расчетные таблицы'!AG12-'Расчетные таблицы'!AF12, 0) -> 0 | AG15: =IF($B$13="Действующая", 'Расчетные таблицы'!AH12-'Расчетные таблицы'!AG12, 0) -> 0 | AH15: =IF($B$13="Действующая", 'Расчетные таблицы'!AI12-'Расчетные таблицы'!AH12, 0) -> 0 | AI15: =IF($B$13="Действующая", 'Расчетные таблицы'!AJ12-'Расчетные таблицы'!AI12, 0) -> 0 | AJ15: =IF($B$13="Действующая", 'Расчетные таблицы'!AK12-'Расчетные таблицы'!AJ12, 0) -> 0 | AK15: =IF($B$13="Действующая", 'Расчетные таблицы'!AL12-'Расчетные таблицы'!AK12, 0) -> 0 | AL15: =IF($B$13="Действующая", 'Расчетные таблицы'!AM12-'Расчетные таблицы'!AL12, 0) -> 0
C17: 1 мес. | D17: 2 мес. | E17: 3 мес. | F17: 4 мес. | G17: 5 мес. | H17: 6 мес. | I17: 7 мес. | J17: 8 мес. | K17: 9 мес. | L17: 10 мес. | M17: 11 мес. | N17: 12 мес. | O17: 13 мес. | P17: 14 мес. | Q17: 15 мес. | R17: 16 мес. | S17: 17 мес. | T17: 18 мес. | U17: 19 мес. | V17: 20 мес. | W17: 21 мес. | X17: 22 мес. | Y17: 23 мес. | Z17: 24 мес. | AA17: 25 мес. | AB17: 26 мес. | AC17: 27 мес. | AD17: 28 мес. | AE17: 29 мес. | AF17: 30 мес. | AG17: 31 мес. | AH17: 32 мес. | AI17: 33 мес. | AJ17: 34 мес. | AK17: 35 мес. | AL17: 36 мес.
B18: Количество терминалов | C18: =C14 -> 1 | D18: =SUM($C$14:D14) -> 2 | E18: =SUM($C$14:E14) -> 2 | F18: =SUM($C$14:F14) -> 2 | G18: =SUM($C$14:G14) -> 2 | H18: =SUM($C$14:H14) -> 2 | I18: =SUM($C$14:I14) -> 2 | J18: =SUM($C$14:J14) -> 2 | K18: =SUM($C$14:K14) -> 2 | L18: =SUM($C$14:L14) -> 2 | M18: =SUM($C$14:M14) -> 2 | N18: =SUM($C$14:N14) -> 2 | O18: =SUM($C$14:O14) -> 2 | P18: =SUM($C$14:P14) -> 2 | Q18: =SUM($C$14:Q14) -> 2 | R18: =SUM($C$14:R14) -> 2 | S18: =SUM($C$14:S14) -> 2 | T18: =SUM($C$14:T14) -> 2 | U18: =SUM($C$14:U14) -> 2 | V18: =SUM($C$14:V14) -> 2 | W18: =SUM($C$14:W14) -> 2 | X18: =SUM($C$14:X14) -> 2 | Y18: =SUM($C$14:Y14) -> 2 | Z18: =SUM($C$14:Z14) -> 2 | AA18: =SUM($C$14:AA14) -> 2 | AB18: =SUM($C$14:AB14) -> 2 | AC18: =SUM($C$14:AC14) -> 2 | AD18: =SUM($C$14:AD14) -> 2 | AE18: =SUM($C$14:AE14) -> 2 | AF18: =SUM($C$14:AF14) -> 2 | AG18: =SUM($C$14:AG14) -> 2 | AH18: =SUM($C$14:AH14) -> 2 | AI18: =SUM($C$14:AI14) -> 2 | AJ18: =SUM($C$14:AJ14) -> 2 | AK18: =SUM($C$14:AK14) -> 2 | AL18: =SUM($C$14:AL14) -> 2
B19: Количество кассиров | C19: -1 | D19: =SUM($C$15:D15) -> -2 | E19: =SUM($C$15:E15) -> -2 | F19: =SUM($C$15:F15) -> -2 | G19: =SUM($C$15:G15) -> -2 | H19: =SUM($C$15:H15) -> -2 | I19: =SUM($C$15:I15) -> -2 | J19: =SUM($C$15:J15) -> -2 | K19: =SUM($C$15:K15) -> -2 | L19: =SUM($C$15:L15) -> -2 | M19: =SUM($C$15:M15) -> -2 | N19: =SUM($C$15:N15) -> -2 | O19: =SUM($C$15:O15) -> -2 | P19: =SUM($C$15:P15) -> -2 | Q19: =SUM($C$15:Q15) -> -2 | R19: =SUM($C$15:R15) -> -2 | S19: =SUM($C$15:S15) -> -2 | T19: =SUM($C$15:T15) -> -2 | U19: =SUM($C$15:U15) -> -2 | V19: =SUM($C$15:V15) -> -2 | W19: =SUM($C$15:W15) -> -2 | X19: =SUM($C$15:X15) -> -2 | Y19: =SUM($C$15:Y15) -> -2 | Z19: =SUM($C$15:Z15) -> -2 | AA19: =SUM($C$15:AA15) -> -2 | AB19: =SUM($C$15:AB15) -> -2 | AC19: =SUM($C$15:AC15) -> -2 | AD19: =SUM($C$15:AD15) -> -2 | AE19: =SUM($C$15:AE15) -> -2 | AF19: =SUM($C$15:AF15) -> -2 | AG19: =SUM($C$15:AG15) -> -2 | AH19: =SUM($C$15:AH15) -> -2 | AI19: =SUM($C$15:AI15) -> -2 | AJ19: =SUM($C$15:AJ15) -> -2 | AK19: =SUM($C$15:AK15) -> -2 | AL19: =SUM($C$15:AL15) -> -2
B20: Заполняемые входные данные | C20: Значение | D20: Комментарий
B21: Стоимость покупки терминала, руб. | C21: 500000 | D21: Заполняется сотрудником SMS
B22: Стоимость аренды терминала, руб. | C22: 30000 | D22: Заполняется сотрудником SMS
B23: Стоимость Разметки, руб. | C23: 35000-700000 | D23: Заполняется сотрудником SMS
B24: Расходы на ТО и поддержку, руб. | C24: 15000 | D24: Заполняется сотрудником SMS
B26: Темп роста выручки (месячный), % | C26: 0 | D26: Заполняется сотрудником SMS, в случае если клиент ответил "н/д" на соответствующий вопрос в анкете
B27: Темп роста расходов (месячный), % (влияние на OPEX) | C27: 0 | D27: Заполняется сотрудником SMS, в случае если клиент ответил "н/д" на соответствующий вопрос в анкете
B28: Темп роста доли безналичных платежей (месячный), % | C28: 0 | D28: Заполняется сотрудником SMS, в случае если клиент ответил "н/д" на соответствующий вопрос в анкете

Sheet Технический лист
B2: ТЕХНИЧЕСКИЙ ЛИСТ
B4: Таблицы зависимости необходимого количества внедрений терминалов от изначального количества кассовых зон
B6: Месяцы | C6: Кассовые зоны | D6: Терминалы | E6: Кассиры | F6: Итого кассовых зон
B7: 1 | C7: 2 | D7: 1 | E7: 1 | F7: =D7+E7 -> 2 | I7: Для листа "Расчет эффективности"
B8: 2 | C8: 2 | D8: 1 | E8: 1 | F8: =D8+E8 -> 2 | I8: Вид организации
B9: 3 | C9: 2 | D9: 1 | E9: 1 | F9: 2 | I9: Действующая | J9: Стартап
B10: 4 | C10: 2 | D10: 1 | E10: 1 | F10: 2 | I10: Покупка терминалов | J10: Аренда терминалов
B11: 5 | C11: 2 | D11: 1 | E11: 1 | F11: 2
B12: 6 | C12: 2 | D12: 1 | E12: 1 | F12: 2
B13: Месяцы | C13: Кассовые зоны | D13: Терминалы | E13: Кассиры | F13: Итого кассовых зон
B14: 1 | C14: 3 | D14: 1 | E14: 2 | F14: =D14+E14 -> 3
B15: 2 | C15: 3 | D15: 2 | E15: 1 | F15: =D15+E15 -> 3
B16: 3 | C16: 3 | D16: 2 | E16: 1 | F16: 3
B17: 4 | C17: 3 | D17: 2 | E17: 1 | F17: 3
B18: 5 | C18: 3 | D18: 2 | E18: 1 | F18: 3
B19: 6 | C19: 3 | D19: 2 | E19: 1 | F19: 3
B20: Месяцы | C20: Кассовые зоны | D20: Терминалы | E20: Кассиры | F20: Итого кассовых зон
B21: 1 | C21: 4 | D21: 1 | E21: 3 | F21: =D21+E21 -> 4
B22: 2 | C22: 4 | D22: 2 | E22: 2 | F22: =D22+E22 -> 4
B23: 3 | C23: 4 | D23: 3 | E23: 1 | F23: 4
B24: 4 | C24: 4 | D24: 3 | E24: 1 | F24: 4
B25: 5 | C25: 4 | D25: 3 | E25: 1 | F25: 4
B26: 6 | C26: 4 | D26: 3 | E26: 1 | F26: 4
B27: Месяцы | C27: Кассовые зоны | D27: Терминалы | E27: Кассиры | F27: Итого кассовых зон
B28: 1 | C28: 5 | D28: 1 | E28: 4 | F28: =D28+E28 -> 5
B29: 2 | C29: 5 | D29: 2 | E29: 3 | F29: =D29+E29 -> 5
B30: 3 | C30: 5 | D30: 3 | E30: 2 | F30: 5
B31: 4 | C31: 5 | D31: 4 | E31: 1 | F31: 5
B32: 5 | C32: 5 | D32: 4 | E32: 1 | F32: 5
B33: 6 | C33: 5 | D33: 4 | E33: 1 | F33: 5
B34: Месяцы | C34: Кассовые зоны | D34: Терминалы | E34: Кассиры | F34: Итого кассовых зон
B35: 1 | C35: 6 | D35: 1 | E35: 5 | F35: =D35+E35 -> 6
B36: 2 | C36: 6 | D36: 2 | E36: 4 | F36: =D36+E36 -> 6
B37: 3 | C37: 6 | D37: 3 | E37: 3 | F37: 6
B38: 4 | C38: 6 | D38: 5 | E38: 1 | F38: 6
B39: 5 | C39: 6 | D39: 5 | E39: 1 | F39: 6
B40: 6 | C40: 6 | D40: 5 | E40: 1 | F40: 6
B41: Месяцы | C41: Кассовые зоны | D41: Терминалы | E41: Кассиры | F41: Итого кассовых зон
B42: 1 | C42: 7 | D42: 1 | E42: 6 | F42: =D42+E42 -> 7
B43: 2 | C43: 7 | D43: 2 | E43: 5 | F43: =D43+E43 -> 7
B44: 3 | C44: 7 | D44: 3 | E44: 4 | F44: 7
B45: 4 | C45: 7 | D45: 6 | E45: 1 | F45: 7
B46: 5 | C46: 7 | D46: 6 | E46: 1 | F46: 7
B47: 6 | C47: 7 | D47: 6 | E47: 1 | F47: 7
B48: Месяцы | C48: Кассовые зоны | D48: Терминалы | E48: Кассиры | F48: Итого кассовых зон
B49: 1 | C49: 8 | D49: 1 | E49: 7 | F49: =D49+E49 -> 8
B50: 2 | C50: 8 | D50: 2 | E50: 6 | F50: =D50+E50 -> 8
B51: 3 | C51: 8 | D51: 3 | E51: 5 | F51: 8
B52: 4 | C52: 8 | D52: 7 | E52: 1 | F52: 8
B53: 5 | C53: 8 | D53: 7 | E53: 1 | F53: 8
B54: 6 | C54: 8 | D54: 7 | E54: 1 | F54: 8
B55: Месяцы | C55: Кассовые зоны | D55: Терминалы | E55: Кассиры | F55: Итого кассовых зон
B56: 1 | C56: 9 | D56: 1 | E56: 8 | F56: =D56+E56 -> 9
B57: 2 | C57: 9 | D57: 2 | E57: 7 | F57: =D57+E57 -> 9
B58: 3 | C58: 9 | D58: 3 | E58: 6 | F58: 9
B59: 4 | C59: 9 | D59: 8 | E59: 1 | F59: 9
B60: 5 | C60: 9 | D60: 8 | E60: 1 | F60: 9
B61: 6 | C61: 9 | D61: 8 | E61: 1 | F61: 9
B62: Месяцы | C62: Кассовые зоны | D62: Терминалы | E62: Кассиры | F62: Итого кассовых зон
B63: 1 | C63: 10 | D63: 1 | E63: 9 | F63: =D63+E63 -> 10
B64: 2 | C64: 10 | D64: 2 | E64: 8 | F64: =D64+E64 -> 10
B65: 3 | C65: 10 | D65: 3 | E65: 7 | F65: 10
B66: 4 | C66: 10 | D66: 9 | E66: 1 | F66: 10
B67: 5 | C67: 10 | D67: 9 | E67: 1 | F67: 10
B68: 6 | C68: 10 | D68: 9 | E68: 1 | F68: 10
B70: Стоимость и сроки разметки блюд
B71: Повторемость блюд в меню
B72: Срок разметки | C72: Ставка за разметку, тыс. руб. | J72: Повторяемость_блюд_в_меню
B73: 7 календарных дней | C73: 100000 | J73: Количество_блюд
B74: 14 календарных дней | C74: 120000
B75: 21 календарных дней | C75: 150000
B76: 30 календарных дней | C76: 200000
B77: более 30 календарных дней | C77: 300000
B79: Стоимость Разметки в зависимости от количества блюд
B80: Количество блюд
B81: Количество блюд | C81: Ставка за разметку, тыс. руб.
B82: 100 | C82: 35000
B83: 200 | C83: 70000
B84: 300 | C84: 105000
B85: 400 | C85: 140000
B86: 500 | C86: 175000
B87: 1000 | C87: 350000
B88: 1500 | C88: 525000
B89: 2000 | C89: 700000
